Workbook

Sheet Cover Page
D1: Add company logo
N2: Version 22.3 30/11/22
N14: Notes:
N15: This template may require adjustments by individual operators to meet specific reporting requirements as defined in the site Permit(s)
B30: Annual Performance Report 2022
B32: Permit EPR/GP3433GH
B34: Cornwall Energy Recovery Centre
B38: SUEZ Recycling and Recovery UK Ltd
B40: Year: | C40: 2022
B42: Address: | C42: St Dennis, St Austell, Cornwall, PL26 8DY
B44: Tel: | C44: 0800 093 1103
B46: Email: | C46: enquiries.uk@suez.com
B48: Prepared by: | C48: Richard Watkins Allan Chapman | F48: Position: | G48: EIR Manager Technical Plant Engineer
B50: Approved by: | C50: Tony Burge | F50: Position: | G50: Plant Manager
B52: Version: | C52: 2
B54: Issue Date: | C54: 2023-02-24

Sheet Contents
A1: =+'Cover Page'!$B$30 -> Annual Performance Report 2022 | E1: =+'Cover Page'!$B$34 -> Cornwall Energy Recovery Centre
A3: Contents | K3: Notes:
A4: Section | B4: Subject | H4: Page | K4: Section references and Page nos. to be inserted
B5: Facility Information | K5: Sections and Subjects may require adjustment by individual operators to meet specific reporting requirements as defined in the sites Permit(s)
B6: Operational Data
B7: Operational Summary
B8: Performance Form 1
B9: Energy Form 1
B10: Permit Compliance
B11: Improvements
B12: Public Liaison
B13: Carbon dioxide and nitrous oxide emissions
B14: Residue Quality
B15: Emissions to Water
B16: Emissions to Air (periodically monitored)
B17: Emissions to Air (continuously monitored)
B18: Hydrogen Chloride emissions
B19: Sulphur Dioxide emissions
B20: Oxides of Nitrogen emissions
B21: Total Organic Carbon emissions
B22: Particulate Matter emissions
B23: Carbon Monoxide emissions
B24: Ammonia emissions
B25: Hydrogen Fluoride Emissions
A27: Version Control
A28: Section | B28: Information | H28: Date
A29: 1 | B29: January 2023 - original document | H29: 2023-01-17
A30: 2 | B30: Amendmenst to line availabilti on Operational Data tab | H30: 2023-02-24
A35: Distribution
A36: Copy | B36: Name, Role | H36: No.
A37: 1 | B37: Site Operations Team
A38: 2 | B38: Environment & Industrial Risk Team
A39: 3 | B39: Environment Agency
A45: This report is required under the Industrial Emissions Directive’s Article 55(2) requirements on reporting and public information on waste incineration plants and co-incineration plants, which require the operator to produce an annual report on the functioning and monitoring of the plant and make it available to the public.
C52: 2
C54: 2023-02-24

Sheet Facility Info
A1: =+'Cover Page'!$B$30 -> Annual Performance Report 2022 | E1: =+'Cover Page'!$B$34 -> Cornwall Energy Recovery Centre
A3: Plant Description and Design | K3: Notes:
A5: This non-hazardous waste incinerator operates 24/7 and the environmental permit allows it to process up to 240,000 tonnes of municipal waste and commercial/Industrial waste. The plant has two furnace lines and the heat produced by waste incineration is used to raise superheated steam which generates approximately 188,000 MWh/annum of electricity. Activities associated with the incineration are receipt and storage of municipal waste and commercial/industrial waste, production of steam and electricity, abatement of flue gas and handling of Incinerator Bottom Ash (IBA) and Air Pollution Control Residue (APCR). The data included within this report corresponds to the following period: 1st January 2022 to 31st December 2022. | K5: Include summary of plant design, design capacity, no. of combustion lines, electrical and heat capacity and any other general information that describes the facility, its location and purpose
A20: Summary of Operational Processes and Procedures
A22: Incoming waste is delivered to site by refuse collection trucks. It is weighed in and delivered into the tipping hall. TIPPING HALL - A large tipping hall allows for refuse collection trucks to manoeuvre and tip waste safely. Air needed for combustion is drawn into the furnace from here so that negative pressure is maintained in order to avoid odour and dust escaping the building. BUNKER - Waste vehicles reverse to a wheel stop and tip their loads into a large concrete bunker. Mixing of waste occurs as the cranes driver sorts the waste looking for unsuitable material to be removed, and to improve the homogeneity of the incinerator feedstock. CONTROL ROOM - The plant’s control room centralises the operation of all equipment, including the grab cranes used to mix and load waste into a hopper that feeds the furnace. All on-site functions are monitored automatically and manually. Its systems verify in real time that equipment is functioning properly, continuously monitor the combustion gas, and maximise the efficiency of the entire ERC process. GRATE AND BOILER - Waste is lifted into the charging hoppers by the crane. From here it falls into the furnace-charging chute and then is introduced onto the grate system by hydraulic feeders for incineration. Auxiliary burners can be used to help keeping the temperature above 850°C if required. The thermal energy released from the burning is used to convert water to super-heated steam along a boiler composed of 4 passes. At high pressure, this steam drives a turbine to generate electricity. ELECTRICITY GENERATION - Electricity is generated at 11kv, with an electric production of approximately 180,000 MWh/annum and exporting approximately 160,000 MWh/annum to the national grid. INCINERATOR BOTTOM ASH (IBA) - Ash left on the grate after incineration is carried by conveyor, after quenching, to the IBA processing facility. Up to 65,000 tonne of IBA is processed on site by the removal of ferrous and non-ferrous metal, stabilised and separated into fraction sizes of IBA prior to the export from site of the processed IBA and metals for re-use. AIR-COOLED CONDENSERS - After exiting the turbine, the steam is cooled and condensed back into water through air condensers. This recovered water is treated and reused in the boilers to produce more steam. EMISSION CONTROL - The gases from the furnace are subject to a rigorous cleaning process involving ammonia as selective noncatalytic reduction (SNCR), lime and active carbon injections. This removes oxides of nitrogen, acidic gases, dioxins, and heavy metals from the gas stream. AIR POLLUTION CONTROL RESIDUE (APCR) - The cleaned gas passes through fine-fabric bag filters to remove solid particles before it is emitted through the stack. The resultant APCR residue, or fly-ash, contains particles from the incineration process, lime used in the flue gas treatment, salts and carbon dust. It is stored in a sealed silo until it is taken away for recycling in tankers. EMISSIONS MONITORING - As they pass through the stack, the residual flue gases from the process are continuously monitored before release. This data is relayed automatically to the control room. | K22: Include summary of key processes and procedures such as (but not limited to); waste reception, control rooms, grate, bed and boiler, energy & heat generation, cooling systems, residue management, emission controls, health and safety systems, maintenance

Sheet Operational Data
A1: =+'Cover Page'!$B$30 -> Annual Performance Report 2022 | E1: =+'Cover Page'!$B$34 -> Cornwall Energy Recovery Centre
A3: Operational Data | K3: Notes:
A4: Plant Size | B4: 240000 | D4: tonnes pa | E4: 86 | F4: MWth | G4: 24 | H4: MWe | K4: * - RDF to include SRF
A5: No. of combustion lines | B5: 2 | D5: No. of Turbines: | F5: 1 | K5: ** - CHP plants only
K6: 2020 updates include; heat in MWh, water in Litres, NCV in MJ/kg
A7: Waste types received | B7: Unit | C7: Q1 | D7: Q2 | E7: Q3 | F7: Q4 | G7: Year Total | H7: %
A8: Household / Local Authority | B8: tonnes | C8: 38751 | D8: 38584 | E8: 39791 | F8: 37770 | G8: =SUM(C8:F8) -> 154896 | H8: =IF(G8>0,G8/$G$18,"-") -> 0.6304889366 | K8: Availability Definition: 'the availability of a line is to be calculated by the number of hours the line reported Continuously Monitored emission levels to the Regulator through the calendar year divided by the total number of hours in that year. The overall plant availability is calculated as the Mean of all lines in the plant. For clarity this includes periods of Other Than Normal Operating Conditions (OTNOC) and abnormal operation.' Rationale: The primary function of an Energy from Waste facility is the disposal of waste. It follows therefore that the availability of a plant is determined by the period of time a facility spends undertaking this activity.
A9: Commercial & Industrial | C9: 28063 | D9: 10932 | E9: 23425 | F9: 28360 | G9: =SUM(C9:F9) -> 90780 | H9: 0.3695110634
A10: Hazardous | G10: 0 | H10: -
A11: Clinical | G11: 0 | H11: -
A12: Waste wood (biomass) | G12: 0 | H12: -
A13: Refuse Derived Fuel * - H'hold/LA | G13: =SUM(C13:F13) -> 0 | H13: -
A14: Refuse Derived Fuel * - C&I | G14: 0 | H14: -
A15: Other [Please specify] | G15: 0 | H15: -
A16: Other [Please specify]
A17: Other [Please specify]
A18: Total waste received | C18: =SUM(C8:C17) -> 66814 | D18: =SUM(D8:D17) -> 49516 | E18: =SUM(E8:E17) -> 63216 | F18: =SUM(F8:F17) -> 66130 | G18: =SUM(G8:G17) -> 245676 | H18: 1
A19: Rejected Waste | G19: =SUM(C19:F19) -> 0 | H19: =IF(G19>0,G19/$G$18,"-") -> -
A20: Unprocessed waste transferred out | G20: =SUM(C20:F20) -> 0 | H20: =IF(G20>0,G20/$G$18,"-") -> -
A21: Total waste combusted | C21: 64598.84 | D21: 47556.31 | E21: 61718.64 | F21: 66125.94 | G21: =SUM(C21:F21) -> 239999.73 | H21: =IF(G21>0,G21/$G$18,"-") -> 0.9768953011
A23: Energy Usage / Export | B23: Unit | C23: Q1 | D23: Q2 | E23: Q3 | F23: Q4 | G23: Year Total | H23: KWh/te
A24: Power Generated | B24: MWh | C24: 49103 | D24: 29420 | E24: 45631 | F24: 45555 | G24: =SUM(C24:F24) -> 169709 | H24: =IF(G24>0,G24*1000/$G$21,"-") -> 707.1216288
A25: Power Exported | C25: 44784 | D25: 26421 | E25: 40773 | F25: 40935 | G25: =SUM(C25:F25) -> 152913 | H25: =IF(G25>0,G25*1000/$G$21,"-") -> 637.1382168
A26: Power Used on site | C26: =(C24+C27)-C25 -> 4319 | D26: =(D24+D27)-D25 -> 3758 | E26: 4869 | F26: 4642 | G26: =SUM(C26:F26) -> 17588 | H26: =IF(G26>0,G26*1000/$G$21,"-") -> 73.28341578
A27: Power Imported | C27: 0 | D27: 759 | E27: 11 | F27: 22 | G27: 792 | H27: =IF(G27>0,G27*1000/$G$21,"-") -> 3.300003713
A28: Parasitic Load | B28: % | C28: =IF(C24>0,1-C25/(C24+C27),"-") -> 0.08795796591 | D28: =IF(D24>0,1-D25/(D24+D27),"-") -> 0.1245236754 | E28: =IF(E24>0,1-E25/(E24+E27),"-") -> 0.1066780597 | F28: =IF(F24>0,1-F25/(F24+F27),"-") -> 0.1018496171 | G28: =IF(G24>0,1-G25/(G24+G27),"-") -> 0.1031548202
A29: Thermal Energy Produced ** | B29: MWh | G29: =SUM(C29:F29) -> 0 | H29: =IF(G29>0,G29*1000/$G$21,"-") -> -
A30: Thermal Energy Exported ** | G30: 0 | H30: =IF(G30>0,G30*1000/$G$21,"-") -> -
A31: R1 value (if applicable) | C31: 0.76
A33: Waste Disposal & Recovery | B33: Unit | C33: Q1 | D33: Q2 | E33: Q3 | F33: Q4 | G33: Year Total | H33: % inputs
A34: APC Residues - produced | B34: tonnes | C34: 1475 | D34: 1158 | E34: 1178 | F34: 1281 | G34: =SUM(C34:F34) -> 5092 | H34: =IF(G34>0,G34/$G$21,"-") -> 0.02121669054
A35: IBA - produced | C35: 10626.72 | D35: 10296.09 | E35: 10345.57 | F35: 11743.1 | G35: 43011.48 | H35: =IF(G35>0,G35/$G$21,"-") -> 0.1792147016
A36: Metals recycling | C36: 2275 | D36: 2028 | E36: 2616 | F36: 1857 | G36: =SUM(C36:F36) -> 8776 | H36: 0.0365667078
A37: Other | C37: 0 | D37: 0 | E37: 0 | F37: 0 | G37: =SUM(C37:F37) -> 0 | H37: -
A38: Other | C38: 0 | D38: 0 | E38: 0 | F38: 0 | G38: 0 | H38: -
A39: Other | C39: 0 | D39: 0 | E39: 0 | F39: 0 | G39: 0 | H39: -
A41: Raw Material Usage | B41: Unit | C41: Q1 | D41: Q2 | E41: Q3 | F41: Q4 | G41: Year Total | H41: kg or Ltr /te
A42: Mains Water | B42: ltrs | C42: 5446000 | D42: 4526000 | E42: 5031000 | F42: 4828000 | G42: =SUM(C42:F42) -> 19831000 | H42: =IF(G42>0,G42/$G$21,"-") -> 82.62925962
A43: Other Water | B43: ltrs | G43: 0 | H43: =IF(G43>0,G43/$G$21,"-") -> -
A44: Ammonia | B44: kgs | C44: 45482 | D44: 27870 | E44: 45187 | F44: 43330 | G44: 161869 | H44: 0.6744549254
A45: Urea | B45: kgs | G45: =SUM(C45:F45) -> 0 | H45: -
A46: Activated Carbon | B46: kgs | C46: 43420 | D46: 26845 | E46: 47172 | F46: 41679 | G46: 159116 | H46: 0.6629840792
A47: Lime / hydrated lime | B47: kgs | C47: 473729 | D47: 337450 | E47: 399287 | F47: 352921 | G47: 1563387 | H47: 6.514119828
A48: Fuel oil | B48: ltrs | C48: 66705 | D48: 60838 | E48: 43374 | F48: 57176 | G48: 228093 | H48: 0.9503885692
A49: Gas | B49: cf | C49: 0 | D49: 0 | E49: 0 | F49: 0 | G49: 0
A50: Other | C50: 0 | D50: 0 | E50: 0 | F50: 0 | G50: 0
A52: Summary | B52: Line/Unit | C52: 2 | D52: Q2 | E52: Q3 | F52: Q4 | G52: Year Total | J52: Hrs in year
A53: Availability of waste combustion by line, hrs | B53: 1 | C53: 2094.3 | D53: 1780 | E53: 2208 | F53: 2139.5 | G53: =SUM(C53:F53) -> 8221.8 | H53: =G53/J53 -> 0.9385616438 | J53: 8760
B54: 2 | C54: 2159 | D54: 1679.5 | E54: 2179.2 | F54: 2209 | G54: 8226.7 | H54: =G54/J53 -> 0.9391210046
B55: 3 | G55: 0 | H55: x %
B56: 4 | G56: 0 | H56: x %
B57: 5 | G57: =SUM(C57:F57) -> 0 | H57: x %
A58: Overall Availability, mean avg. of all lines, hrs | G58: =AVERAGE(G53:G54) -> 8224.25 | H58: =G58/J53 -> 0.9388413242
A59: Hours of turbine operations, hrs | B59: 1 | C59: 2159 | D59: 1469 | E59: 2203 | F59: 2196 | G59: 8027 | H59: =G59/J53 -> 0.9163242009
A60: Hours of turbine operations, hrs | B60: 2 | G60: 0 | H60: x %
A61: Hours of heat / steam export | G61: 0 | H61: =IF(B61>0,G60/J53,"n/a") -> n/a
A62: Net Calorific Value of waste | B62: MJ/kg | C62: 9.4 | D62: 9.2 | E62: 9.4 | F62: 8.7 | G62: =AVERAGE(C62:F62) -> 9.175 | H62: -
A63: Abnormal Events | B63: qty. | C63: 2 | D63: 0 | E63: 0 | F63: 2 | G63: 4 | H63: =IF(G63>0,"yes","no") -> yes
A64: Abnormal operation | B64: hours | C64: 1.5 | F64: 1 | G64: 2.5 | H64: =+(G64)/J53 -> 0.0002853881279
A65: Permit Breaches | B65: qty. | C65: 2 | D65: 0 | E65: 0 | F65: 1 | G65: 3 | H65: =IF(G65>0,"yes","no") -> yes

Sheet Operational Summary
A1: =+'Cover Page'!$B$30 -> Annual Performance Report 2022 | E1: =+'Cover Page'!$B$34 -> Cornwall Energy Recovery Centre
A3: Summary of Plant Operations and Maintenance during the reporting year | K3: Notes:
A5: The main annual outage of 2022 took place in April/May. The outage works consisted of the normal grit blasting of all internal furnace tubes, thickness testing and NDT. A large program of equipment overhauls was undertaken including grate and refractory inspections and repairs on both lines. To improve plant stability, combustion and decrease the amount of fouling seen within the boiler horizontal pass some modifications were made to the secondary air injection nozzles on Line 2 including the installation of a combustion control system. Operationally the plant had a good level of reliability across the year. | K5: Include summary of key operational and/or maintenance activity undertaken in the year, such as any major component upgrades and/or replacements
A29: Summary of Residue Handling for the reporting year
A31: All IBA produced by the EfW plant is transferred to the IBA recycling plant by conveyor, the IBA recycling plant is operated by Blue Phoenix. The IBA is non-hazardous, as confirmed by weekly analysis of the IBA, and undergoes a mechanical separation process to remove all ferrous and non-ferrous metals leaving an IBA aggregate product. The metals are transferred to other operators for recycling and the IBA is applied to land in construction activities as a replacement for virgin (quarried) aggregate. This is in accordance with Environment Agency Regulatory Position Statement (RPS) 206 "Using unbound IBAA in construction activities". Air Pollution Control (APC) residues is the fly ash from the boiler mixed with dry sorbents such as carbon and lime in the flu gas treatment plant. The APC residue is hazardous and is therefore collected and disposed of to landfill Some additional residues may be produced during cleaning of the boiler during cleaning activities in planned maintenance outages. This boiler ash, often mixed with grit blast residues from the cleaning process, is disposed of to landfill. | K31: Include in here a summary of residue handling regimes and destinations
C54: 2023-02-24

Sheet Perf. Form 1
A1: =+'Cover Page'!C40 -> 2022 | B1: Annual Reporting Performance Form 1
A3: =+'Cover Page'!B32 -> Permit EPR/GP3433GH | F3: Operator: | G3: =+'Cover Page'!B38:B38 -> SUEZ Recycling and Recovery UK Ltd
A4: Facility: | B4: =+'Cover Page'!B34:I34 -> Cornwall Energy Recovery Centre | F4: Form: | G4: Performance 1
A6: Reporting Period from: | D6: 2022-01-01 | F6: to: | G6: 2022-12-31
A8: =+A1 -> 2022 | B8: Annual Reporting of Waste Disposal and Recovery
A9: Waste Description | C9: Disposal Route(s) | E9: Disposal Tonnes | G9: Recovery Tonnes | I9: % / tonne of waste incinerated
A10: 1) Hazardous Wastes
A11: APC Residues | C11: D05 | E11: 5092.86 | I11: =IF((E11+G11)>0,(E11+G11)/'Operational Data'!$G$21, "-") -> 0.02122027387
A12: IBA | I12: =IF((E12+G12)>0,(E12+G12)/'Operational Data'!$G$21, "-") -> -
I13: =IF((E13+G13)>0,(E13+G13)/'Operational Data'!$G$21, "-") -> -
I14: =IF((E14+G14)>0,(E14+G14)/'Operational Data'!$G$21, "-") -> -
A15: Total Hazardous Waste | E15: =SUM(E11:F14) -> 5092.86 | G15: =SUM(G11:H14) -> 0 | I15: =IF((E15+G15)>0,(E15+G15)/'Operational Data'!$G$21, "-") -> 0.02122027387
A17: 2) Non-Hazardous Wastes
A18: IBA | C18: R10 | G18: 46074.2 | I18: =IF((E18+G18)>0,(E18+G18)/'Operational Data'!$G$21, "-") -> 0.1919760493
A19: Ferrous Metal | C19: R5 | G19: 5522 | I19: =IF((E19+G19)>0,(E19+G19)/'Operational Data'!$G$21, "-") -> 0.02300835922
A20: Process Water | I20: =IF((E20+G20)>0,(E20+G20)/'Operational Data'!$G$21, "-") -> -
A21: Non-ferrous metal | C21: R5 | G21: 3276 | I21: =IF((E21+G21)>0,(E21+G21)/'Operational Data'!$G$21, "-") -> 0.01365001536
I22: =IF((E22+G22)>0,(E22+G22)/'Operational Data'!$G$21, "-") -> -
A23: Total Non-Hazardous Waste | E23: =SUM(E18:F22) -> 0 | G23: =SUM(G18:H22) -> 54872.2 | I23: =IF((E23+G23)>0,(E23+G23)/'Operational Data'!$G$21, "-") -> 0.2286344239
A24: TOTAL WASTE | E24: =+E23+E15 -> 5092.86 | G24: =+G23+G15 -> 54872.2 | I24: =IF((E24+G24)>0,(E24+G24)/'Operational Data'!$G$21, "-") -> 0.2498546978
A26: Operator’s comments :
A31: =+A1 -> 2022 | B31: Annual Reporting of Water and Other Raw Material Usage
A32: Raw Material | E32: Usage | G32: Unit | H32: Specific Usage | J32: Unit
A33: Mains Water | E33: =(+'Operational Data'!G42)/1000 -> 19831 | G33: m3 | H33: =IF(E33>0,E33/'Operational Data'!$G$21,"-") -> 0.08262925962 | J33: m3/te
A34: Total Water | E34: =(+'Operational Data'!G43+'Operational Data'!G42)/1000 -> 19831 | G34: m3 | H34: =IF(E34>0,E34/'Operational Data'!$G$21,"-") -> 0.08262925962 | J34: m3/te
A35: Urea / Ammonia | E35: =+'Operational Data'!G44 -> 161869 | G35: kg | H35: =IF(E35>0,E35/'Operational Data'!$G$21,"-") -> 0.6744549254 | J35: kg/te
A36: Activated Carbon | E36: =+'Operational Data'!G46 -> 159116 | G36: kg | H36: =IF(E36>0,E36/'Operational Data'!$G$21,"-") -> 0.6629840792 | J36: kg/te
A37: Lime / hydrated lime / Sodium Bicarb. | E37: =+'Operational Data'!G47 -> 1563387 | G37: kg | H37: =IF(E37>0,E37/'Operational Data'!$G$21,"-") -> 6.514119828 | J37: kg/te
A39: Operator’s comments :
A43: =+A31 -> 2022 | B43: Annual Reporting of other performance indicators
A44: Parameter | C44: Results by Line
C45: A1 | D45: A2 | E45: A3 | F45: A4 | G45: A5 | I45: Turbine 1 | J45: Turbine 2
A46: Operating hours for the year, hours | C46: 8172 | D46: 8136 | I46: 8027
A47: Number of periods of abnormal operation, qty. | C47: 1 | D47: 4
A48: Cumulative hours of abnormal operation for this year, hours | C48: 0.5 | D48: 2
A50: Operator’s comments :
A54: Signed: | B54: Richard Watkins | C54: 2023-02-24 | G54: Date: | H54: 2023-01-17

Sheet Energy Form 1
A1: =+'Cover Page'!C40 -> 2022 | B1: Annual Reporting of Energy Usage/Export
A3: =+'Cover Page'!B32 -> Permit EPR/GP3433GH | E3: Operator: | F3: =+'Cover Page'!B38:B38 -> SUEZ Recycling and Recovery UK Ltd
A5: Facility: | B5: =+'Cover Page'!B34:I34 -> Cornwall Energy Recovery Centre | F5: Form: | G5: Energy 1
A7: Reporting Period from: | D7: =+'Perf. Form 1'!D6:E6 -> 2022-01-01 | F7: to: | G7: =+'Perf. Form 1'!G6:H6 -> 2022-12-31
A9: Energy Source | D9: Energy Usage | F9: Unit | G9: Specific Useage (KWh/tonne incinerated
A10: Electricity Produced | D10: =+'Operational Data'!G24 -> 169709 | F10: MWh | G10: =+'Operational Data'!H24 -> 707.1216288
A11: Electricity Imported | D11: =+'Operational Data'!G27 -> 792 | F11: MWh | G11: =+'Operational Data'!H27 -> 3.300003713
A12: Electricity Exported | D12: =+'Operational Data'!G25 -> 152913 | F12: MWh | G12: =+'Operational Data'!H25 -> 637.1382168
A13: Gas Oil | D13: =('Operational Data'!G48/1000)*0.845 -> 192.738585 | F13: tonnes | G13: =+(D13*42800*1000*(1/3600))/'Operational Data'!G21 -> 9.547709165
A14: Steam/hot water exported | D14: =+'Operational Data'!G30 -> 0 | F14: GWh | G14: =+'Operational Data'!H30 -> -
A18: Operator’s comments :
A19: Density value of 845 kg.m-3 used to convert gas oil litres to tonnes. Net Calorific Value (NCV) of 42,800 kJ.kg-1 used for gas oil
A29: Signed: | B29: Richard Watkins | G29: Date: | H29: 2023-01-17
C52: 2
C54: 2023-02-24

Sheet Permit Compliance
A1: =+'Cover Page'!$B$30 -> Annual Performance Report 2022 | E1: =+'Cover Page'!$B$34 -> Cornwall Energy Recovery Centre
A3: Summary of Permit Compliance
A5: Compliance with permit limits for continuously monitored pollutants
A7: The plant met its emission limits as shown in the table below:
A8: Substance | C8: Percentage time compliant during operation | L8: Notes:
C9: Half-hourly limit | F9: Daily limit | L9: Report to 2 decimal places, i.e. xx.xx% Please provide a brief summary of each notification or non-compliance in the table (rather than just referring to notifications that were sent to the Regulator).
A10: Particulates | C10: 1 | F10: 1
A11: Oxides of nitrogen | C11: 1 | F11: 1
A12: Sulphur dioxide | C12: 1 | F12: 1
A13: Carbon monoxide | C13: 100.00 % 95% of 10-min averages | F13: 1
A14: Total organic carbon | C14: 1 | F14: 1
A15: Hydrogen chloride | C15: 1 | F15: 0.9985
A16: Hydrogen fluoride | C16: 1 | F16: 1
A19: Summary of any notifications or non-compliances under the permit
A20: Date | B20: Summary of notification or non-compliance [including Line/Reference] | E20: Reason | H20: Measures taken to prevent reoccurrence
A21: 2022-01-18 | B21: Carbon monoxide 1/2 hourly ELV breach Line 1 | E21: Unstable combustion | H21: Permit variation
A22: 2022-02-16 | B22: IBA TOC concentration above 3% limit | E22: Laboratory issues? | H22: None
A23: 2022-12-01 | B23: Hydrogen chloride daily average breach Line 2 | E23: Comms issue between CDAS and DCS | H23: Memory cache cleared and alarm mgt.
A24: 2022-01-18 | B24: CEMs data loss Line 2 | E24: CDAS comms issue | H24: Service contractor investigation
A25: 2022-02-04 | B25: CEMs data loss Line 1 & 2 | E25: CDAS comms issue | H25: Service contractor investigation
A26: 2022-11-06 | B26: CEMs data loss - failed background check Line 2 | E26: SO2 analyser fault | H26: Service contractor investigation
A27: 2022-12-15 | B27: CEMS data loss Line 2 | E27: Nitrogen solenoid failure | H27: Solenoid replaced
A29: Summary of any complaints received and actions to taken to resolve them.
A30: Date | B30: Summary of complaint [including Line/Reference] | E30: Reason * | H30: Measures taken to prevent reoccurrence
E36: * including whether substantiated by the operator or the EA
C52: 2
C54: 2023-02-24

Sheet Improvements
A1: =+'Cover Page'!$B$30 -> Annual Performance Report 2022 | E1: =+'Cover Page'!$B$34 -> Cornwall Energy Recovery Centre
A3: Summary of Plant Improvements
A5: Summary of any efficiency improvements that have been completed within the year.
A6: To improve plant stability, combustion and decrease the amount of fouling seen within the boiler horizontal pass some modifications were made to the secondary air injection nozzles on Line 2 including the installation of a combustion control system.
A16: Summary of any permit improvement conditions that have been completed within the year and the resulting environmental benefits.
A17: Not applicable
A27: Summary of any changes to the plant or operating techniques which required a variation to the permit and a summary of the resulting environmental impact.
A28: Not applicable
A38: Summary of any other improvements made to the plant or planned to be made and a summary of the resulting environmental benefits.
C52: 2
C54: 2023-02-24

Sheet Public Liasion
A1: =+'Cover Page'!$B$30 -> Annual Performance Report 2022 | E1: =+'Cover Page'!$B$34 -> Cornwall Energy Recovery Centre
A3: Details of Public & Stakeholder Liasion
A5: Summary of events held during the reporting year.
A6: Date | C6: Description
A7: 2022-04-09 | C7: Spring Beach Clean and Easter Egg Hunt at Black Rock Beach, nr Bude. Staff were joined by friends and family in this great social value event.
A9: 01-07/05/22 | C9: Compost Awareness Week. Compost was given away free to the public from two HWRC sites. Staff were available to discuss composting and also to promote the visitor centres and tours of CERC and MRF.
A11: 09-11/06/22 | C11: Royal Cornwall Show. SUEZ staff were available on our stand at the show to discuss the waste hierarchy and the work we carry out at our sites. Tours of both CERC and MRF were successfully promoted.
A13: 2022-10-15 | C13: Autumn Beach Clean event at Holywell Bay, Newquay. Staff were joined by friends and family in this great social value event.
A16: List of events planned for next year
A17: Date | C17: Description
A18: 2023-03-11 | C18: Spring Beach Clean and Easter Egg Hunt at Par Sands Beach. Staff will joined by friends and family in this great social value event. Cornwall Council staff will also be invited.
A20: 13-19/03/23 | C20: Compost Awareness Week. Details to be confirmed.
A22: 08-10/06/23 | C22: Royal Cornwall Show. SUEZ staff will be available on our stand at the show to discuss the waste hierarchy and the work we carry out at our sites. The visitors centres and tours will also be promoted.
A24: June to September dates to be confirmed. | C24: Sir Arthur Smith School, Penryn College, Callywith College Outreach visits and careers fairs (to be confirmed)
A26: October/November date to be confirmed. | C26: Autumn Beach Clean event (venue to be decided) , Newquay. Staff will be joined by friends and family in this great social value event. Cornwall Council staff will also be invited.
A29: If you wish to be involved in the public liasion programme, please contact lisa.thompson@suez.com
C52: 2
C54: 2023-02-24

Sheet CO2 N2O
A1: =+'Cover Page'!$B$30 -> Annual Performance Report 2022 | C1: =+'Cover Page'!$B$34 -> Cornwall Energy Recovery Centre
A3: Carbon dioxide emissions and biogenic content of waste inputs | E3: Notes:
A5: Carbon dioxide emissions (all types of plant)
A6: Annual mass of carbon dioxide released | B6: 225013 | C6: tonnes
A7: Annual mass of carbon dioxide released per tonne of waste burned | B7: =B6/'Operational Data'!G21 -> 0.9375552214 | C7: tonnes
A8: Annual mass of carbon dioxide released per MWh of energy exported | B8: =B6/'Operational Data'!G25 -> 1.471509944 | C8: tonnes
A9: Description of how annual carbon dioxide mass emission has been calculated | B9: CO2 (%) measured by the CEMS was converted to a mass and then multiplied by flow rate and operational hours to provide the annual mass emission. Data from 12/01/2022 has a calibration function apllied from the QAL2 calibration that took place on the 18/11/2021. | E9: Note 1: Where available, data from CO2 CEMS should be used. Otherwise, where no CEMS data is available, a suitable emissions factor should be used based on the tonnage of waste burned e.g.0.992 tCO2/t waste as per Tolvik report 2021, or other justified emissions factor - refer to embedded Environment Agency guidance note above or updated version for suitable descriptive text.
A11: Nitrous oxide emissions (only plants which use ammonia or urea to abate NOx emissions)
A12: Annual mass emissions of nitrous oxide | B12: 1.1 | C12: tonnes
A13: Description of how annual nitrous oxide mass emission has been calculated | B13: CEMS mass emission report. Data from 12/01/2022 has a calibration function apllied from the QAL2 calibration that took place on the 18/11/2021. | E13: Note 2: Where available, data from N2O CEMS should be used, or if no CEMS data is available, from periodic monitoring. Otherwise, a suitable emissions factor should be used based on the tonnage of waste burned e.g. 0.0981 kgN20/t waste as per 2021 Pollution Inventory data for plants with urea-based SNCR - refer to embedded Environment Agency guidance note above or updated version for suitable descriptive text.
A14: Total annual carbon dioxide and nitrous oxide emissions as carbon dioxide equivalent (whereby 1 t nitrous oxide is equivalent to 298 t carbon dioxide) | B14: =(B12*298)+B6 -> 225340.8 | C14: tonnes CO2e
A16: Biogenic fraction of the waste and biogenic CO2 emissions (only plants burning residual municipal waste, refuse derived fuel or solid recovered fuel)
A17: Yearly average biogenic percentage of the waste by net calorific value (NCV) | B17: 0.5361
A18: Description of how biogenic NCV percentage has been calculated or estimated | B18: Periodic waste sampling (annual) is carried out in order to determine the biogenic fraction, and from this a factor is derived to determine the proportion of biogenic CO2 emitted from the plant. | E18: Note 3: Where available, data from waste sampling should be used; otherwise, an estimated figure with justification can be used, or a figure assumed on the basis of a national average e.g. 2017 WRAP data for residual waste of 51.8% biogenic energy content - refer to embedded Environment Agency guidance note above or updated version for suitable descriptive text, quoting standards where relevant.
A19: Percentage of total carbon dioxide emissions arising from biogenic waste | B19: 0.5361
A20: Description of how percentage biogenic carbon dioxide emissions have been calculated | B20: Periodic waste sampling (annual) is carried out in order to determine the biogenic fraction, and from this a factor is derived to determine the proportion of biogenic CO2 emitted from the plant. | E20: Note 4: Examples include direct measurement via C14 method or BIOMA software - refer to embedded Environment Agency guidance note above or updated version for suitable descriptive text, quoting standards where relevant. Otherwise, as an approximation (and in lieu of any more accurate metrics which may be developed in future), the measured or estimated biogenic fraction by net calorific value can be assumed to be the same as the biogenic CO2 fraction of the total CO2 emissions from the plant.
A22: Comments:
C52: 2
C54: 2023-02-24

Sheet Residue Quality
A1: =+'Cover Page'!$B$30 -> Annual Performance Report 2022 | E1: =+'Cover Page'!$B$34 -> Cornwall Energy Recovery Centre
A3: Residue Quality Monitoring Requirements
A5: Summary of monitoring undertaken and compliance
A6: The samples for the quarterly IBA analysis were taken on the 16/02/2022, the 25/05/2022, the 17/08/2022 and the 09/11/2022.
A13: Commentary on any specific events
A14: Date & Event | C14: Description
A15: 2022-02-16 | C15: The TOC analysis result for this IBA sample provided a non-compliant result of 3.44%. A subsequent retest of the retained sample provided a slightly lower TOC result of 3.08. Investigations on site were unable to identify any specific reason for the elevated TOC result and all subsequent results from 2022 were below the 3% limit.
A27: Residue Quality Monitoring Results
A28: Parameter (unit) | C28: Limit | D28: Normal Operation
D29: Bottom ash | F29: APC Residues
A30: Loss on Ignition (average %) | C30: <5% | D30: N/A
A31: Total Organic Carbon (average %) | C31: <3% | D31: 2.79
A32: No. of Assessments Undertaken | C32: --- | D32: 5 | F32: 4
A33: No. of Hazardous Results | C33: --- | D33: 0
A35: Comments :
A36: Feb 2022 TOC = 3.44% (Retained sample retest = 3.08%) May 2022 TOC = 2.63% Aug 2022 TOC = 2.17% Nov 2022 TOC = 2.63
C52: 2
C54: 2023-02-24

Sheet Water
A1: =+'Cover Page'!$B$30 -> Annual Performance Report 2022 | E1: =+'Cover Page'!$B$34 -> Cornwall Energy Recovery Centre
A3: Emissions to Water
A5: Summary of monitoring undertaken and compliance
A6: There are no discharges to water that require monitoring under the Environmental Permit. There are two discharges to water from package sewage treatment plants serving the EfW and IBA plant welfare facilities but these are regulated under separate Environmental Permits. there are no discharges to sewer from the site.
A13: Commentary on any specific events
A14: Date & Event | C14: Description
A22: Emissions to Water / Sewer
A23: Parameter | D23: Monitoring Frequency | F23: Limit | G23: Target | H23: Max. | I23: Average
C52: 2
C54: 2023-02-24

Sheet Air (periodic)
A1: =+'Cover Page'!$B$30 -> Annual Performance Report 2022 | E1: =+'Cover Page'!$B$34 -> Cornwall Energy Recovery Centre
A3: Emissions to Air (periodically monitored)
A5: Summary of monitoring undertaken, standards used and compliance | M5: Notes:
A6: The compliance monitoring visits were carried out during May and November 2022. There were no non-compliances identified during either visit. | M6: Template may require adjustment for any bespoke monitoring requirements of permit.
A9: Results of emissions to air that are periodically monitored
A10: Substance | C10: Ref. Period | D10: Emission Limit Value | F10: Average | M10: User to add additional tables as necessary, depending on whether quarterly or bi-annual reporting is required for the compliance year
F11: A1 | G11: A2 | H11: A3 | I11: A4 | J11: A5
A12: Hydrogen fluoride | C12: 1 hr | D12: 2 mg/m3 | F12: 0.505 | G12: 0.199
A13: Cd and Th and their compounds | C13: 6-8hrs | D13: 0.05 mg/m3 | F13: 0.001225 | G13: 0.001375
A14: Hg and its compounds | C14: 6-8hrs | D14: 0.05 mg/m3 | F14: 0.001175 | G14: 0.00205
A15: Sb, As, Pb, Cr, Co, Cu, Mn, Ni, V and their compounds | C15: 6-8hrs | D15: 0.5 mg/m3 | F15: 0.0415 | G15: 0.209
A16: Dioxins & Furans (I-TEQ) | C16: 6-8hrs | D16: 0.1 ng/m3 | F16: 0.00275 | G16: 0.00205
A17: PCBs (WHO-TEQ Humans / Mammals) | C17: 6-8hrs | D17: None set ng/m3 | F17: 0.00039 | G17: 0.00031
A18: PCBs (WHO-TEQ Fish) | C18: 6-8hrs | D18: None set ng/m3 | F18: 2.1e-05 | G18: 1.65e-05
A19: PCBs (WHO-TEQ Birds) | C19: 6-8hrs | D19: None set ng/m3 | F19: 0.00175 | G19: 0.00104
A20: Dioxins & Furans (WHO-TEQ Humans / Mammals) | C20: 6-8hrs | D20: None set ng/m3 | F20: 0.0033 | G20: 0.0021
A21: Dioxins & Furans (WHO-TEQ Fish) | C21: 6-8hrs | D21: None set ng/m3 | F21: 0.00345 | G21: 0.0024
A22: Dioxins & Furans (WHO-TEQ Birds) | C22: 6-8hrs | D22: None set ng/m3 | F22: 0.00475 | G22: 0.0048
A23: Anthanthrene | C23: 6-8hrs | D23: None set µg/m3 | F23: 0.00165 | G23: 0.0017
A24: Benzo(a)anthracene | C24: 6-8hrs | D24: None set µg/m3 | F24: 0.00165 | G24: 0.002
A25: Benzo(a)pyrene | C25: 6-8hrs | D25: None set µg/m3 | F25: 0.00165 | G25: 0.0017
A26: Benzo(b)fluoranthene | C26: 6-8hrs | D26: None set µg/m3 | F26: 0.00165 | G26: 0.0017
A27: Benzo(b)naptho(2,1-d) thiophene | C27: 6-8hrs | D27: None set µg/m3 | F27: 0.01185 | G27: 0.01405
A28: Benzo(c)phenanthrene | C28: 6-8hrs | D28: None set µg/m3 | F28: 0.00165 | G28: 0.0019
A29: Benzo(ghi)perylene | C29: 6-8hrs | D29: None set µg/m3 | F29: 0.00165 | G29: 0.00185
A30: Benzo(k)fluoranthene | C30: 6-8hrs | D30: None set µg/m3 | F30: 0.00165 | G30: 0.0017
A31: Cholanthrene | C31: 6-8hrs | D31: None set µg/m3 | F31: 0.00165 | G31: 0.0017
A32: Chrysene | C32: 6-8hrs | D32: None set µg/m3 | F32: 0.0021 | G32: 0.00215
A33: Cyclopenta(cd)pyrene | C33: 6-8hrs | D33: None set µg/m3 | F33: 0.00165 | G33: 0.0017
A34: Dibenzo(ai)pyrene | C34: 6-8hrs | D34: None set µg/m3 | F34: 0.00165 | G34: 0.0017
A35: Dibenzo(ah)anthracene | C35: 6-8hrs | D35: None set µg/m3 | F35: 0.00165 | G35: 0.0017
A36: Fluoranthene | C36: 6-8hrs | D36: None set µg/m3 | F36: 0.04335 | G36: 0.07835
A37: Indeno(123-cd) pyrene | C37: 6-8hrs | D37: None set µg/m3 | F37: 0.00165 | G37: 0.0019
A38: Naphthalene | C38: 6-8hrs | D38: None set µg/m3 | F38: 0.365 | G38: 0.61
A39: Comments :
A40: The average result is calculated from the reported values for the H1 and H2 compliance monitoring campaigns. Where results are reported at the laboratory limit of detection the < qualifier is removed for calculation of the average emission as a conservative measure. Where the average has been calculated in this way the reported value is highlighted bold.
C52: 2
C54: 2023-02-24

Sheet Air (CEMS)
A1: =+'Cover Page'!$B$30 -> Annual Performance Report 2022 | I1: =+'Cover Page'!$B$34 -> Cornwall Energy Recovery Centre
A3: Emissions to Air (continuously monitored)
P4: Notes:
A5: Summary of monitoring undertaken, standards used and compliance | P5: Template may require adjustment for any bespoke monitoring requirements of permit
A6: The CEMS set up comprises a multigas analyser, FID analyser and then the oxygen probe for extractive sampling where flue gases are drawn continuously via a heated line to the analysers in the CEMS room for each incineration line. In situ sampling i.e. where the probes are installed directly into the flue gas flow in the stack is for the dust probes only. The set up for the duty analysers is mirrored by the standby analysers. The standby analysers can be switched between incineration Lines 1 and 2 as required. Continuous monitoring is provided by the CEMS as required by the permit. The CEMS are installed in accordance with EN14181 and relevant Environment Agency guidance. | P6: Report to 2 decimal places, i.e. xx.xx%
A9: Results of emissions to air that are continuously monitored (maximum and average values for each line)
A10: Substance | B10: Reference Period | C10: Emission Limit Value | D10: A1 | F10: A2 | H10: A3 | J10: A4 | L10: A5
D11: Max. | E11: Avg. | F11: Max. | G11: Avg. | H11: Max. | I11: Avg. | J11: Max. | K11: Avg. | L11: Max. | M11: Avg.
A12: Oxides of nitrogen | B12: Daily mean | C12: 200 mg/m3 | D12: =NOx!O19 -> 146 | E12: =NOx!N19 -> 134.6166667 | F12: =NOx!O34 -> 148 | G12: =NOx!N34 -> 138.5916667
B13: ½ hourly mean | C13: 400 mg/m3 | D13: =NOx!M19 -> 178 | E13: =NOx!L19 -> 134.6166667 | F13: =NOx!M34 -> 183 | G13: =NOx!L34 -> 138.5916667
A14: Particulates | B14: Daily mean | C14: 10 mg/m3 | D14: =Particulates!O19 -> 2.6 | E14: =Particulates!N19 -> 0.6083333333 | F14: =Particulates!O34 -> 3 | G14: =Particulates!N34 -> 0.3166666667
B15: ½ hourly mean | C15: 30 mg/m3 | D15: =Particulates!M19 -> 17.6 | E15: =Particulates!L19 -> 0.6083333333 | F15: =Particulates!M34 -> 20.4 | G15: =Particulates!L34 -> 0.3166666667
A16: Total Organic Carbon | B16: Daily mean | C16: 10 mg/m3 | D16: =TOC!O19 -> 0.9 | E16: =TOC!N19 -> 0.3166666667 | F16: =TOC!O34 -> 0.8 | G16: =TOC!N34 -> 0.2333333333
B17: ½ hourly mean | C17: 20 mg/m3 | D17: =TOC!M19 -> 6.1 | E17: =TOC!L19 -> 0.3166666667 | F17: =TOC!M34 -> 9.8 | G17: =TOC!L34 -> 0.2333333333
A18: Hydrogen chloride | B18: Daily mean | C18: 10 mg/m3 | D18: =HCl!O19 -> 10 | E18: =HCl!N19 -> 8.416666667 | F18: =HCl!O34 -> 10 | G18: =HCl!N34 -> 8.75
B19: ½ hourly mean | C19: 60 mg/m3 | D19: =HCl!M19 -> 15 | E19: =HCl!L19 -> 8.416666667 | F19: =HCl!M34 -> 19 | G19: =HCl!L34 -> 8.75
A20: Sulphur dioxide | B20: Daily mean | C20: 50 mg/m3 | D20: ='SO2'!O19 -> 21 | E20: ='SO2'!N19 -> 12.41666667 | F20: ='SO2'!O34 -> 22 | G20: ='SO2'!N34 -> 13.83333333
B21: ½ hourly mean | C21: 200 mg/m3 | D21: ='SO2'!M19 -> 189 | E21: ='SO2'!L19 -> 12.41666667 | F21: ='SO2'!M34 -> 52 | G21: ='SO2'!L34 -> 13.83333333
A22: Carbon monoxide | B22: Daily mean | C22: 50 mg/m3 | D22: ='CO 95% 10 min'!Q19 -> 5 | E22: ='CO 95% 10 min'!P19 -> 0.4 | F22: ='CO 95% 10 min'!Q34 -> 10 | G22: ='CO 95% 10 min'!P34 -> 3
B23: ½ hourly mean * | C23: 100 mg/m3 * | D23: ='CO 0.5hourly'!M19 -> 59 | E23: ='CO 0.5hourly'!L19 -> 0 | F23: ='CO 0.5hourly'!M34 -> 84 | G23: ='CO 0.5hourly'!L34 -> 2.5
B24: 95%ile 10-min avg * | C24: 150 mg/m3 * | D24: ='CO 95% 10 min'!M19 -> 6.2 | E24: ='CO 95% 10 min'!N19 -> 0.4 | F24: ='CO 95% 10 min'!M34 -> 12.4 | G24: ='CO 95% 10 min'!N34 -> 3
A25: Ammonia | B25: Daily mean | C25: No limit set | D25: ='NH3'!O19 -> 0.1 | E25: ='NH3'!N19 -> 0.04166666667 | F25: ='NH3'!O34 -> 0.2 | G25: ='NH3'!N34 -> 0
A26: Hydrogen Fluoride | B26: Daily mean | C26: 1 mg/m3 | D26: =HF!O19 -> 0.3 | E26: ='NH3'!N19 -> 0.04166666667 | F26: =HF!O34 -> 0.8 | G26: =HF!N34 -> 0.03333333333
B27: ½ hourly mean | C27: 4 mg/m3 | D27: =HF!M19 -> 1.6 | E27: =HF!L19 -> 0.008333333333 | F27: =HF!M34 -> 1.4 | G27: =HF!L34 -> 0.03333333333
A28: * = delete or amend as appropriate
A29: Comments :
C52: 2
C54: 2023-02-24

Sheet HCl
A1: =+'Cover Page'!$B$30 -> Annual Performance Report 2022 | E1: =+'Cover Page'!$B$34 -> Cornwall Energy Recovery Centre
A3: Monitoring of Hydrogen Chloride emissions | D3: Whole Installation | G3: See Notes in Cell Q3 | J3: =+A3 -> Monitoring of Hydrogen Chloride emissions | N3: Per Combustion Line | Q3: Notes:
Q4: User to add logic to complete Whole installation, Table A5:G18. From the data in Per Combustion Line, Table J6:O79, subject to No. of lines installed
A5: mg/Nm3 | B5: 1/2 Hourly Reference Periods | E5: Daily Reference Periods
A6: =+'Cover Page'!C40 -> 2022 | B6: 1/2 hourly HCl ELV | C6: Monthly 1/2 hourly mean | D6: Highest 1/2 hourly maximum | E6: Daily HCl ELV | F6: Monthly daily mean | G6: Highest daily maximum | J6: =+A6 -> 2022 | K6: mg/Nm3 | L6: Monthly 1/2 hourly mean | M6: Monthly 1/2 hourly maximum | N6: Monthly daily mean | O6: Monthly daily maximum
A7: Jan | B7: 60 | C7: =AVERAGE(L7,L22) -> 9 | D7: =AVERAGE(M7,M22) -> 15 | E7: 10 | F7: =AVERAGE(N7,N22) -> 9 | G7: =AVERAGE(O7,O22) -> 10 | J7: A1 | K7: Jan | L7: 9 | M7: 14 | N7: 9 | O7: 10
A8: Feb | B8: 60 | C8: =AVERAGE(L8,L23) -> 8 | D8: 14 | E8: 10 | F8: =AVERAGE(N8,N23) -> 8 | G8: 10 | K8: Feb | L8: 7 | M8: 13 | N8: 7 | O8: 10
A9: Mar | B9: 60 | C9: =AVERAGE(L9,L24) -> 8.5 | D9: 15.5 | E9: 10 | F9: =AVERAGE(N9,N24) -> 8.5 | G9: 10 | K9: Mar | L9: 7 | M9: 13 | N9: 7 | O9: 10 | Q9: Whole Installation table A5:G18:
A10: Apr | B10: 60 | C10: =AVERAGE(L10,L25) -> 10 | D10: 17 | E10: 10 | F10: =AVERAGE(N10,N25) -> 10 | G10: 10 | K10: Apr | L10: 10 | M10: 15 | N10: 10 | O10: 10 | Q10: Mean: for 1/2 hourly and daily periods calculate mean of values across all operational combustion lines for the month
A11: May | B11: 60 | C11: =AVERAGE(L11,L26) -> 4.5 | D11: 9.5 | E11: 10 | F11: =AVERAGE(N11,N26) -> 4.5 | G11: 8 | K11: May | L11: 6 | M11: 11 | N11: 6 | O11: 10
A12: Jun | B12: 60 | C12: =AVERAGE(L12,L27) -> 8 | D12: 12.5 | E12: 10 | F12: =AVERAGE(N12,N27) -> 8 | G12: 10 | K12: Jun | L12: 8 | M12: 12 | N12: 8 | O12: 10
A13: Jul | B13: 60 | C13: =AVERAGE(L13,L28) -> 10 | D13: 12.5 | E13: 10 | F13: =AVERAGE(N13,N28) -> 10 | G13: 10 | K13: Jul | L13: 10 | M13: 12 | N13: 10 | O13: 10 | Q13: Maximum: for 1/2 hourly and daily periods use the highest value across all operational combustion lines for the month
A14: Aug | B14: 60 | C14: =AVERAGE(L14,L29) -> 9.5 | D14: 13 | E14: 10 | F14: =AVERAGE(N14,N29) -> 9.5 | G14: 10 | K14: Aug | L14: 10 | M14: 13 | N14: 10 | O14: 10
A15: Sep | B15: 60 | C15: =AVERAGE(L15,L30) -> 10 | D15: 13 | E15: 10 | F15: =AVERAGE(N15,N30) -> 10 | G15: 10 | K15: Sep | L15: 10 | M15: 13 | N15: 10 | O15: 10
A16: Oct | B16: 60 | C16: =AVERAGE(L16,L31) -> 9.5 | D16: 13.5 | E16: 10 | F16: =AVERAGE(N16,N31) -> 9.5 | G16: 10 | K16: Oct | L16: 9 | M16: 14 | N16: 9 | O16: 10
A17: Nov | B17: 60 | C17: =AVERAGE(L17,L32) -> 9 | D17: 12.5 | E17: 10 | F17: =AVERAGE(N17,N32) -> 9 | G17: 10 | K17: Nov | L17: 9 | M17: 12 | N17: 9 | O17: 10
A18: Dec | B18: 60 | C18: =AVERAGE(L18,L33) -> 7 | D18: 14 | E18: 10 | F18: =AVERAGE(N18,N33) -> 7 | G18: 9.5 | K18: Dec | L18: 6 | M18: 11 | N18: 6 | O18: 9
K19: Annual | L19: =AVERAGE(L7:L18) -> 8.416666667 | M19: =MAX(M7:M18) -> 15 | N19: =AVERAGE(N7:N18) -> 8.416666667 | O19: =MAX(O7:O18) -> 10
J21: =+A6 -> 2022 | K21: mg/Nm3 | L21: Monthly 1/2 hourly mean | M21: Monthly 1/2 hourly maximum | N21: Monthly daily mean | O21: Monthly daily maximum
J22: A2 | K22: Jan | L22: 9 | M22: 16 | N22: 9 | O22: 10
K23: Feb | L23: 9 | M23: 15 | N23: 9 | O23: 10
K24: Mar | L24: 10 | M24: 18 | N24: 10 | O24: 10
K25: Apr | L25: 10 | M25: 19 | N25: 10 | O25: 10
K26: May | L26: 3 | M26: 8 | N26: 3 | O26: 6
K27: Jun | L27: 8 | M27: 13 | N27: 8 | O27: 10
K28: Jul | L28: 10 | M28: 13 | N28: 10 | O28: 10
K29: Aug | L29: 9 | M29: 13 | N29: 9 | O29: 10
K30: Sep | L30: 10 | M30: 13 | N30: 10 | O30: 10
K31: Oct | L31: 10 | M31: 13 | N31: 10 | O31: 10
K32: Nov | L32: 9 | M32: 13 | N32: 9 | O32: 10
K33: Dec | L33: 8 | M33: 17 | N33: 8 | O33: 10
K34: Annual | L34: =AVERAGE(L22:L33) -> 8.75 | M34: =MAX(M22:M33) -> 19 | N34: =AVERAGE(N22:N33) -> 8.75 | O34: =MAX(O22:O33) -> 10
J36: =+A6 -> 2022 | K36: mg/Nm3 | L36: Monthly 1/2 hourly mean | M36: Monthly 1/2 hourly maximum | N36: Monthly daily mean | O36: Monthly daily maximum
J37: A3 | K37: Jan
K38: Feb
K39: Mar
K40: Apr
K41: May
K42: Jun
K43: Jul
K44: Aug
K45: Sep
K46: Oct
K47: Nov
A48: Comments : | K48: Dec
K49: Annual | L49: =AVERAGE(L37:L48) ->  | M49: =MAX(M37:M48) -> 0 | N49: =AVERAGE(N37:N48) ->  | O49: =MAX(O37:O48) -> 0
J51: =+A6 -> 2022 | K51: mg/Nm3 | L51: Monthly 1/2 hourly mean | M51: Monthly 1/2 hourly maximum | N51: Monthly daily mean | O51: Monthly daily maximum
J52: A4 | K52: Jan
K53: Feb
C54: 2023-02-24 | K54: Mar
K55: Apr
K56: May
K57: Jun
K58: Jul
K59: Aug
K60: Sep
K61: Oct
K62: Nov
K63: Dec
K64: Annual | L64: =AVERAGE(L52:L63) ->  | M64: =MAX(M52:M63) -> 0 | N64: =AVERAGE(N52:N63) ->  | O64: =MAX(O52:O63) -> 0
J66: =+A6 -> 2022 | K66: mg/Nm3 | L66: Monthly 1/2 hourly mean | M66: Monthly 1/2 hourly maximum | N66: Monthly daily mean | O66: Monthly daily maximum
J67: A5 | K67: Jan
K68: Feb
K69: Mar
K70: Apr
K71: May
K72: Jun
K73: Jul
K74: Aug
K75: Sep
K76: Oct
K77: Nov
K78: Dec
K79: Annual | L79: =AVERAGE(L67:L78) ->  | M79: =MAX(M67:M78) -> 0 | N79: =AVERAGE(N67:N78) ->  | O79: =MAX(O67:O78) -> 0

Sheet SO2
A1: =+'Cover Page'!$B$30 -> Annual Performance Report 2022 | E1: =+'Cover Page'!$B$34 -> Cornwall Energy Recovery Centre
A3: Monitoring of Sulphur dioxide emissions | D3: Whole Installation | G3: See Notes in Cell Q3 | J3: =+A3 -> Monitoring of Sulphur dioxide emissions | N3: Per Combustion Line | Q3: Notes:
Q4: User to add logic to complete Whole installation, Table A5:G18. From the data in Per Combustion Line, Table J6:O79, subject to No. of lines installed
A5: mg/Nm3 | B5: 1/2 Hourly Reference Periods | E5: Daily Reference Periods
A6: =+'Cover Page'!C40 -> 2022 | B6: 1/2 hourly SO2 ELV | C6: Monthly 1/2 hourly mean | D6: Highest 1/2 hourly maximum | E6: Daily SO2 ELV | F6: Monthly daily mean | G6: Highest daily maximum | J6: =+A6 -> 2022 | K6: mg/Nm3 | L6: Monthly 1/2 hourly mean | M6: Monthly 1/2 hourly maximum | N6: Monthly daily mean | O6: Monthly daily maximum
A7: Jan | B7: 200 | C7: =AVERAGE(L7,L22) -> 12.5 | D7: =AVERAGE(M7,M22) -> 32 | E7: 50 | F7: =AVERAGE(N7,N22) -> 12.5 | G7: =AVERAGE(O7,O22) -> 17 | J7: A1 | K7: Jan | L7: 13 | M7: 25 | N7: 13 | O7: 17
A8: Feb | B8: 200 | C8: =AVERAGE(L8,L23) -> 15.5 | D8: 46.5 | E8: 50 | F8: =AVERAGE(N8,N23) -> 15.5 | G8: 19.5 | K8: Feb | L8: 16 | M8: 43 | N8: 16 | O8: 20
A9: Mar | B9: 200 | C9: =AVERAGE(L9,L24) -> 15.5 | D9: 109 | E9: 50 | F9: =AVERAGE(N9,N24) -> 15.5 | G9: 20 | K9: Mar | L9: 16 | M9: 178 | N9: 16 | O9: 21 | Q9: Whole Installation table A5:G18:
A10: Apr | B10: 200 | C10: =AVERAGE(L10,L25) -> 10 | D10: 33 | E10: 50 | F10: =AVERAGE(N10,N25) -> 10 | G10: 13 | K10: Apr | L10: 8 | M10: 20 | N10: 8 | O10: 11 | Q10: Mean: for 1/2 hourly and daily periods calculate mean of values across all operational combustion lines for the month
A11: May | B11: 200 | C11: =AVERAGE(L11,L26) -> 17 | D11: 31.5 | E11: 50 | F11: =AVERAGE(N11,N26) -> 17 | G11: 20 | K11: May | L11: 16 | M11: 29 | N11: 16 | O11: 20
A12: Jun | B12: 200 | C12: =AVERAGE(L12,L27) -> 16 | D12: 32 | E12: 50 | F12: =AVERAGE(N12,N27) -> 16 | G12: 18.5 | K12: Jun | L12: 14 | M12: 37 | N12: 14 | O12: 18
A13: Jul | B13: 200 | C13: =AVERAGE(L13,L28) -> 9.5 | D13: 23 | E13: 50 | F13: =AVERAGE(N13,N28) -> 9.5 | G13: 14 | K13: Jul | L13: 7 | M13: 19 | N13: 7 | O13: 13 | Q13: Maximum: for 1/2 hourly and daily periods use the highest value across all operational combustion lines for the month
A14: Aug | B14: 200 | C14: =AVERAGE(L14,L29) -> 9 | D14: 26 | E14: 50 | F14: =AVERAGE(N14,N29) -> 9 | G14: 15 | K14: Aug | L14: 7 | M14: 26 | N14: 7 | O14: 13
A15: Sep | B15: 200 | C15: =AVERAGE(L15,L30) -> 9.5 | D15: 26.5 | E15: 50 | F15: =AVERAGE(N15,N30) -> 9.5 | G15: 15.5 | K15: Sep | L15: 8 | M15: 27 | N15: 8 | O15: 14
A16: Oct | B16: 200 | C16: =AVERAGE(L16,L31) -> 12 | D16: 53.5 | E16: 50 | F16: =AVERAGE(N16,N31) -> 12 | G16: 18.5 | K16: Oct | L16: 12 | M16: 81 | N16: 12 | O16: 18
A17: Nov | B17: 200 | C17: =AVERAGE(L17,L32) -> 15.5 | D17: 28.5 | E17: 50 | F17: =AVERAGE(N17,N32) -> 15.5 | G17: 18 | K17: Nov | L17: 16 | M17: 31 | N17: 16 | O17: 18
A18: Dec | B18: 200 | C18: =AVERAGE(L18,L33) -> 15.5 | D18: 120.5 | E18: 50 | F18: =AVERAGE(N18,N33) -> 15.5 | G18: 21 | K18: Dec | L18: 16 | M18: 189 | N18: 16 | O18: 20
K19: Annual | L19: =AVERAGE(L7:L18) -> 12.41666667 | M19: =MAX(M7:M18) -> 189 | N19: =AVERAGE(N7:N18) -> 12.41666667 | O19: =MAX(O7:O18) -> 21
J21: =+A6 -> 2022 | K21: mg/Nm3 | L21: Monthly 1/2 hourly mean | M21: Monthly 1/2 hourly maximum | N21: Monthly daily mean | O21: Monthly daily maximum
J22: A2 | K22: Jan | L22: 12 | M22: 39 | N22: 12 | O22: 17
K23: Feb | L23: 15 | M23: 50 | N23: 15 | O23: 19
K24: Mar | L24: 15 | M24: 40 | N24: 15 | O24: 19
K25: Apr | L25: 12 | M25: 46 | N25: 12 | O25: 15
K26: May | L26: 18 | M26: 34 | N26: 18 | O26: 20
K27: Jun | L27: 18 | M27: 27 | N27: 18 | O27: 19
K28: Jul | L28: 12 | M28: 27 | N28: 12 | O28: 15
K29: Aug | L29: 11 | M29: 26 | N29: 11 | O29: 17
K30: Sep | L30: 11 | M30: 26 | N30: 11 | O30: 17
K31: Oct | L31: 12 | M31: 26 | N31: 12 | O31: 19
K32: Nov | L32: 15 | M32: 26 | N32: 15 | O32: 18
K33: Dec | L33: 15 | M33: 52 | N33: 15 | O33: 22
K34: Annual | L34: =AVERAGE(L22:L33) -> 13.83333333 | M34: =MAX(M22:M33) -> 52 | N34: =AVERAGE(N22:N33) -> 13.83333333 | O34: =MAX(O22:O33) -> 22
J36: =+A6 -> 2022 | K36: mg/Nm3 | L36: Monthly 1/2 hourly mean | M36: Monthly 1/2 hourly maximum | N36: Monthly daily mean | O36: Monthly daily maximum
J37: A3 | K37: Jan
K38: Feb
K39: Mar
K40: Apr
K41: May
K42: Jun
K43: Jul
K44: Aug
K45: Sep
K46: Oct
K47: Nov
A48: Comments : | K48: Dec
K49: Annual | L49: =AVERAGE(L37:L48) ->  | M49: =MAX(M37:M48) -> 0 | N49: =AVERAGE(N37:N48) ->  | O49: =MAX(O37:O48) -> 0
J51: =+A6 -> 2022 | K51: mg/Nm3 | L51: Monthly 1/2 hourly mean | M51: Monthly 1/2 hourly maximum | N51: Monthly daily mean | O51: Monthly daily maximum
J52: A4 | K52: Jan
K53: Feb
C54: 2023-02-24 | K54: Mar
K55: Apr
K56: May
K57: Jun
K58: Jul
K59: Aug
K60: Sep
K61: Oct
K62: Nov
K63: Dec
K64: Annual | L64: =AVERAGE(L52:L63) ->  | M64: =MAX(M52:M63) -> 0 | N64: =AVERAGE(N52:N63) ->  | O64: =MAX(O52:O63) -> 0
J66: =+A6 -> 2022 | K66: mg/Nm3 | L66: Monthly 1/2 hourly mean | M66: Monthly 1/2 hourly maximum | N66: Monthly daily mean | O66: Monthly daily maximum
J67: A5 | K67: Jan
K68: Feb
K69: Mar
K70: Apr
K71: May
K72: Jun
K73: Jul
K74: Aug
K75: Sep
K76: Oct
K77: Nov
K78: Dec
K79: Annual | L79: =AVERAGE(L67:L78) ->  | M79: =MAX(M67:M78) -> 0 | N79: =AVERAGE(N67:N78) ->  | O79: =MAX(O67:O78) -> 0

Sheet NOx
A1: =+'Cover Page'!$B$30 -> Annual Performance Report 2022 | E1: =+'Cover Page'!$B$34 -> Cornwall Energy Recovery Centre
A3: Monitoring of Oxides of Nitrogen emissions | D3: Whole Installation | G3: See Notes in Cell Q3 | J3: =+A3 -> Monitoring of Oxides of Nitrogen emissions | N3: Per Combustion Line | Q3: Notes:
Q4: User to add logic to complete Whole installation, Table A5:G18. From the data in Per Combustion Line, Table J6:O79, subject to No. of lines installed
A5: mg/Nm3 | B5: 1/2 Hourly Reference Periods | E5: Daily Reference Periods
A6: =+'Cover Page'!C40 -> 2022 | B6: 1/2 hourly NOx ELV | C6: Monthly 1/2 hourly mean | D6: Highest 1/2 hourly maximum | E6: Daily NOx ELV | F6: Monthly daily mean | G6: Highest daily maximum | J6: =+A6 -> 2022 | K6: mg/Nm3 | L6: Monthly 1/2 hourly mean | M6: Monthly 1/2 hourly maximum | N6: Monthly daily mean | O6: Monthly daily maximum
A7: Jan | B7: 400 | C7: =AVERAGE(L7,L22) -> 138.35 | D7: =AVERAGE(M7,M22) -> 169 | E7: 200 | F7: =AVERAGE(N7,N22) -> 138.35 | G7: =AVERAGE(O7,O22) -> 145.5 | J7: A1 | K7: Jan | L7: 134 | M7: 155 | N7: 134 | O7: 143
A8: Feb | B8: 400 | C8: =AVERAGE(L8,L23) -> 140 | D8: 159 | E8: 200 | F8: =AVERAGE(N8,N23) -> 140 | G8: 144.5 | K8: Feb | L8: 135.9 | M8: 158 | N8: 135.9 | O8: 141
A9: Mar | B9: 400 | C9: =AVERAGE(L9,L24) -> 139.4 | D9: 157.5 | E9: 200 | F9: =AVERAGE(N9,N24) -> 139.4 | G9: 145 | K9: Mar | L9: 135.8 | M9: 155 | N9: 135.8 | O9: 142 | Q9: Whole Installation table A5:G18:
A10: Apr | B10: 400 | C10: =AVERAGE(L10,L25) -> 135.9 | D10: 162.5 | E10: 200 | F10: =AVERAGE(N10,N25) -> 135.9 | G10: 144.5 | K10: Apr | L10: 137.9 | M10: 163 | N10: 137.9 | O10: 146 | Q10: Mean: for 1/2 hourly and daily periods calculate mean of values across all operational combustion lines for the month
A11: May | B11: 400 | C11: =AVERAGE(L11,L26) -> 138 | D11: 159.5 | E11: 200 | F11: =AVERAGE(N11,N26) -> 138 | G11: 145 | K11: May | L11: 136.2 | M11: 158 | N11: 136.2 | O11: 144
A12: Jun | B12: 400 | C12: =AVERAGE(L12,L27) -> 139.4 | D12: 159.5 | E12: 200 | F12: =AVERAGE(N12,N27) -> 139.4 | G12: 145.5 | K12: Jun | L12: 137.1 | M12: 156 | N12: 137.1 | O12: 144
A13: Jul | B13: 400 | C13: =AVERAGE(L13,L28) -> 137.75 | D13: 173.5 | E13: 200 | F13: =AVERAGE(N13,N28) -> 137.75 | G13: 142.5 | K13: Jul | L13: 135.6 | M13: 171 | N13: 135.6 | O13: 142 | Q13: Maximum: for 1/2 hourly and daily periods use the highest value across all operational combustion lines for the month
A14: Aug | B14: 400 | C14: =AVERAGE(L14,L29) -> 135.35 | D14: 156 | E14: 200 | F14: =AVERAGE(N14,N29) -> 135.35 | G14: 142 | K14: Aug | L14: 136.9 | M14: 156 | N14: 136.9 | O14: 140
A15: Sep | B15: 400 | C15: =AVERAGE(L15,L30) -> 140.65 | D15: 166.5 | E15: 200 | F15: =AVERAGE(N15,N30) -> 140.65 | G15: 144.5 | K15: Sep | L15: 138.2 | M15: 178 | N15: 138.2 | O15: 144
A16: Oct | B16: 400 | C16: =AVERAGE(L16,L31) -> 132.55 | D16: 156.5 | E16: 200 | F16: =AVERAGE(N16,N31) -> 132.55 | G16: 140.5 | K16: Oct | L16: 127.8 | M16: 156 | N16: 127.8 | O16: 137
A17: Nov | B17: 400 | C17: =AVERAGE(L17,L32) -> 127.8 | D17: 154 | E17: 200 | F17: =AVERAGE(N17,N32) -> 127.8 | G17: 138 | K17: Nov | L17: 126.7 | M17: 155 | N17: 126.7 | O17: 138
A18: Dec | B18: 400 | C18: =AVERAGE(L18,L33) -> 134.1 | D18: 159 | E18: 200 | F18: =AVERAGE(N18,N33) -> 134.1 | G18: 141 | K18: Dec | L18: 133.3 | M18: 154 | N18: 133.3 | O18: 139
K19: Annual | L19: =AVERAGE(L7:L18) -> 134.6166667 | M19: =MAX(M7:M18) -> 178 | N19: =AVERAGE(N7:N18) -> 134.6166667 | O19: =MAX(O7:O18) -> 146
J21: =+A6 -> 2022 | K21: mg/Nm3 | L21: Monthly 1/2 hourly mean | M21: Monthly 1/2 hourly maximum | N21: Monthly daily mean | O21: Monthly daily maximum
J22: A2 | K22: Jan | L22: 142.7 | M22: 183 | N22: 142.7 | O22: 148
K23: Feb | L23: 144.1 | M23: 160 | N23: 144.1 | O23: 148
K24: Mar | L24: 143 | M24: 160 | N24: 143 | O24: 148
K25: Apr | L25: 133.9 | M25: 162 | N25: 133.9 | O25: 143
K26: May | L26: 139.8 | M26: 161 | N26: 139.8 | O26: 146
K27: Jun | L27: 141.7 | M27: 163 | N27: 141.7 | O27: 147
K28: Jul | L28: 139.9 | M28: 176 | N28: 139.9 | O28: 143
K29: Aug | L29: 133.8 | M29: 156 | N29: 133.8 | O29: 144
K30: Sep | L30: 143.1 | M30: 155 | N30: 143.1 | O30: 145
K31: Oct | L31: 137.3 | M31: 157 | N31: 137.3 | O31: 144
K32: Nov | L32: 128.9 | M32: 153 | N32: 128.9 | O32: 138
K33: Dec | L33: 134.9 | M33: 164 | N33: 134.9 | O33: 143
K34: Annual | L34: =AVERAGE(L22:L33) -> 138.5916667 | M34: =MAX(M22:M33) -> 183 | N34: =AVERAGE(N22:N33) -> 138.5916667 | O34: =MAX(O22:O33) -> 148
J36: =+A6 -> 2022 | K36: mg/Nm3 | L36: Monthly 1/2 hourly mean | M36: Monthly 1/2 hourly maximum | N36: Monthly daily mean | O36: Monthly daily maximum
J37: A3 | K37: Jan
K38: Feb
K39: Mar
K40: Apr
K41: May
K42: Jun
K43: Jul
K44: Aug
K45: Sep
K46: Oct
K47: Nov
A48: Comments : | K48: Dec
K49: Annual | L49: =AVERAGE(L37:L48) ->  | M49: =MAX(M37:M48) -> 0 | N49: =AVERAGE(N37:N48) ->  | O49: =MAX(O37:O48) -> 0
J51: =+A6 -> 2022 | K51: mg/Nm3 | L51: Monthly 1/2 hourly mean | M51: Monthly 1/2 hourly maximum | N51: Monthly daily mean | O51: Monthly daily maximum
J52: A4 | K52: Jan
K53: Feb
C54: 2023-02-24 | K54: Mar
K55: Apr
K56: May
K57: Jun
K58: Jul
K59: Aug
K60: Sep
K61: Oct
K62: Nov
K63: Dec
K64: Annual | L64: =AVERAGE(L52:L63) ->  | M64: =MAX(M52:M63) -> 0 | N64: =AVERAGE(N52:N63) ->  | O64: =MAX(O52:O63) -> 0
J66: =+A6 -> 2022 | K66: mg/Nm3 | L66: Monthly 1/2 hourly mean | M66: Monthly 1/2 hourly maximum | N66: Monthly daily mean | O66: Monthly daily maximum
J67: A5 | K67: Jan
K68: Feb
K69: Mar
K70: Apr
K71: May
K72: Jun
K73: Jul
K74: Aug
K75: Sep
K76: Oct
K77: Nov
K78: Dec
K79: Annual | L79: =AVERAGE(L67:L78) ->  | M79: =MAX(M67:M78) -> 0 | N79: =AVERAGE(N67:N78) ->  | O79: =MAX(O67:O78) -> 0

Sheet TOC
A1: =+'Cover Page'!$B$30 -> Annual Performance Report 2022 | E1: =+'Cover Page'!$B$34 -> Cornwall Energy Recovery Centre
A3: Monitoring of Total organic carbon emissions | D3: Whole Installation | G3: See Notes in Cell Q3 | J3: =+A3 -> Monitoring of Total organic carbon emissions | N3: Per Combustion Line | Q3: Notes:
Q4: User to add logic to complete Whole installation, Table A5:G18. From the data in Per Combustion Line, Table J6:O79, subject to No. of lines installed
A5: mg/Nm3 | B5: 1/2 Hourly Reference Periods | E5: Daily Reference Periods
A6: =+'Cover Page'!C40 -> 2022 | B6: 1/2 hourly TOC ELV | C6: Monthly 1/2 hourly mean | D6: Highest 1/2 hourly maximum | E6: Daily TOC ELV | F6: Monthly daily mean | G6: Highest daily maximum | J6: =+A6 -> 2022 | K6: mg/Nm3 | L6: Monthly 1/2 hourly mean | M6: Monthly 1/2 hourly maximum | N6: Monthly daily mean | O6: Monthly daily maximum
A7: Jan | B7: 20 | C7: =AVERAGE(L7,L22) -> 0.35 | D7: =AVERAGE(M7,M22) -> 2.1 | E7: 10 | F7: =AVERAGE(N7,N22) -> 0.35 | G7: =AVERAGE(O7,O22) -> 0.35 | J7: A1 | K7: Jan | L7: 0.4 | M7: 0.8 | N7: 0.4 | O7: 0.4
A8: Feb | B8: 20 | C8: =AVERAGE(L8,L23) -> 0.3 | D8: 6.35 | E8: 10 | F8: =AVERAGE(N8,N23) -> 0.3 | G8: 0.55 | K8: Feb | L8: 0.3 | M8: 2.9 | N8: 0.3 | O8: 0.5
A9: Mar | B9: 20 | C9: =AVERAGE(L9,L24) -> 0.2 | D9: 0.9 | E9: 10 | F9: =AVERAGE(N9,N24) -> 0.2 | G9: 0.35 | K9: Mar | L9: 0.2 | M9: 1.1 | N9: 0.2 | O9: 0.4 | Q9: Whole Installation table A5:G18:
A10: Apr | B10: 20 | C10: =AVERAGE(L10,L25) -> 0.4 | D10: 4.5 | E10: 10 | F10: =AVERAGE(N10,N25) -> 0.4 | G10: 0.85 | K10: Apr | L10: 0.5 | M10: 6.1 | N10: 0.5 | O10: 0.9 | Q10: Mean: for 1/2 hourly and daily periods calculate mean of values across all operational combustion lines for the month
A11: May | B11: 20 | C11: =AVERAGE(L11,L26) -> 0 | D11: 0.5 | E11: 10 | F11: =AVERAGE(N11,N26) -> 0 | G11: 0.45 | K11: May | L11: 0 | M11: 0.4 | N11: 0 | O11: 0.3
A12: Jun | B12: 20 | C12: =AVERAGE(L12,L27) -> 0.45 | D12: 2.6 | E12: 10 | F12: =AVERAGE(N12,N27) -> 0.45 | G12: 0.65 | K12: Jun | L12: 0.5 | M12: 3.4 | N12: 0.5 | O12: 0.7
A13: Jul | B13: 20 | C13: =AVERAGE(L13,L28) -> 0.35 | D13: 3.35 | E13: 10 | F13: =AVERAGE(N13,N28) -> 0.35 | G13: 0.45 | K13: Jul | L13: 0.4 | M13: 2.5 | N13: 0.4 | O13: 0.4 | Q13: Maximum: for 1/2 hourly and daily periods use the highest value across all operational combustion lines for the month
A14: Aug | B14: 20 | C14: =AVERAGE(L14,L29) -> 0.35 | D14: 4.45 | E14: 10 | F14: =AVERAGE(N14,N29) -> 0.35 | G14: 0.5 | K14: Aug | L14: 0.3 | M14: 1.8 | N14: 0.3 | O14: 0.4
A15: Sep | B15: 20 | C15: =AVERAGE(L15,L30) -> 0.25 | D15: 1.5 | E15: 10 | F15: =AVERAGE(N15,N30) -> 0.25 | G15: 0.35 | K15: Sep | L15: 0.3 | M15: 0.5 | N15: 0.3 | O15: 0.4
A16: Oct | B16: 20 | C16: =AVERAGE(L16,L31) -> 0.2 | D16: 2.6 | E16: 10 | F16: =AVERAGE(N16,N31) -> 0.2 | G16: 0.5 | K16: Oct | L16: 0.3 | M16: 2 | N16: 0.3 | O16: 0.6
A17: Nov | B17: 20 | C17: =AVERAGE(L17,L32) -> 0.1 | D17: 2.35 | E17: 10 | F17: =AVERAGE(N17,N32) -> 0.1 | G17: 0.3 | K17: Nov | L17: 0.2 | M17: 1.8 | N17: 0.2 | O17: 0.2
A18: Dec | B18: 20 | C18: =AVERAGE(L18,L33) -> 0.35 | D18: 2.95 | E18: 10 | F18: =AVERAGE(N18,N33) -> 0.35 | G18: 0.35 | K18: Dec | L18: 0.4 | M18: 2.6 | N18: 0.4 | O18: 0.4
K19: Annual | L19: =AVERAGE(L7:L18) -> 0.3166666667 | M19: =MAX(M7:M18) -> 6.1 | N19: =AVERAGE(N7:N18) -> 0.3166666667 | O19: =MAX(O7:O18) -> 0.9
J21: =+A6 -> 2022 | K21: mg/Nm3 | L21: Monthly 1/2 hourly mean | M21: Monthly 1/2 hourly maximum | N21: Monthly daily mean | O21: Monthly daily maximum
J22: A2 | K22: Jan | L22: 0.3 | M22: 3.4 | N22: 0.3 | O22: 0.3
K23: Feb | L23: 0.3 | M23: 9.8 | N23: 0.3 | O23: 0.6
K24: Mar | L24: 0.2 | M24: 0.7 | N24: 0.2 | O24: 0.3
K25: Apr | L25: 0.3 | M25: 2.9 | N25: 0.3 | O25: 0.8
K26: May | L26: 0 | M26: 0.6 | N26: 0 | O26: 0.6
K27: Jun | L27: 0.4 | M27: 1.8 | N27: 0.4 | O27: 0.6
K28: Jul | L28: 0.3 | M28: 4.2 | N28: 0.3 | O28: 0.5
K29: Aug | L29: 0.4 | M29: 7.1 | N29: 0.4 | O29: 0.6
K30: Sep | L30: 0.2 | M30: 2.5 | N30: 0.2 | O30: 0.3
K31: Oct | L31: 0.1 | M31: 3.2 | N31: 0.1 | O31: 0.4
K32: Nov | L32: 0 | M32: 2.9 | N32: 0 | O32: 0.4
K33: Dec | L33: 0.3 | M33: 3.3 | N33: 0.3 | O33: 0.3
K34: Annual | L34: =AVERAGE(L22:L33) -> 0.2333333333 | M34: =MAX(M22:M33) -> 9.8 | N34: =AVERAGE(N22:N33) -> 0.2333333333 | O34: =MAX(O22:O33) -> 0.8
J36: =+A6 -> 2022 | K36: mg/Nm3 | L36: Monthly 1/2 hourly mean | M36: Monthly 1/2 hourly maximum | N36: Monthly daily mean | O36: Monthly daily maximum
J37: A3 | K37: Jan
K38: Feb
K39: Mar
K40: Apr
K41: May
K42: Jun
K43: Jul
K44: Aug
K45: Sep
K46: Oct
K47: Nov
A48: Comments : | K48: Dec
K49: Annual | L49: =AVERAGE(L37:L48) ->  | M49: =MAX(M37:M48) -> 0 | N49: =AVERAGE(N37:N48) ->  | O49: =MAX(O37:O48) -> 0
J51: =+A6 -> 2022 | K51: mg/Nm3 | L51: Monthly 1/2 hourly mean | M51: Monthly 1/2 hourly maximum | N51: Monthly daily mean | O51: Monthly daily maximum
J52: A4 | K52: Jan
K53: Feb
C54: 2023-02-24 | K54: Mar
K55: Apr
K56: May
K57: Jun
K58: Jul
K59: Aug
K60: Sep
K61: Oct
K62: Nov
K63: Dec
K64: Annual | L64: =AVERAGE(L52:L63) ->  | M64: =MAX(M52:M63) -> 0 | N64: =AVERAGE(N52:N63) ->  | O64: =MAX(O52:O63) -> 0
J66: =+A6 -> 2022 | K66: mg/Nm3 | L66: Monthly 1/2 hourly mean | M66: Monthly 1/2 hourly maximum | N66: Monthly daily mean | O66: Monthly daily maximum
J67: A5 | K67: Jan
K68: Feb
K69: Mar
K70: Apr
K71: May
K72: Jun
K73: Jul
K74: Aug
K75: Sep
K76: Oct
K77: Nov
K78: Dec
K79: Annual | L79: =AVERAGE(L67:L78) ->  | M79: =MAX(M67:M78) -> 0 | N79: =AVERAGE(N67:N78) ->  | O79: =MAX(O67:O78) -> 0

Sheet Particulates
A1: =+'Cover Page'!$B$30 -> Annual Performance Report 2022 | E1: =+'Cover Page'!$B$34 -> Cornwall Energy Recovery Centre
A3: Monitoring of Particulate matter emissions | D3: Whole Installation | G3: See Notes in Cell Q3 | J3: =+A3 -> Monitoring of Particulate matter emissions | N3: Per Combustion Line | Q3: Notes:
Q4: User to add logic to complete Whole installation, Table A5:G18. From the data in Per Combustion Line, Table J6:O79, subject to No. of lines installed
A5: mg/Nm3 | B5: 1/2 Hourly Reference Periods | E5: Daily Reference Periods
A6: =+'Cover Page'!C40 -> 2022 | B6: 1/2 hourly PM ELV | C6: Monthly 1/2 hourly mean | D6: Highest 1/2 hourly maximum | E6: Daily PM ELV | F6: Monthly daily mean | G6: Highest daily maximum | J6: =+A6 -> 2022 | K6: mg/Nm3 | L6: Monthly 1/2 hourly mean | M6: Monthly 1/2 hourly maximum | N6: Monthly daily mean | O6: Monthly daily maximum
A7: Jan | B7: 30 | C7: =AVERAGE(L7,L22) -> 0.45 | D7: =AVERAGE(M7,M22) -> 1.45 | E7: 10 | F7: =AVERAGE(N7,N22) -> 0.45 | G7: =AVERAGE(O7,O22) -> 0.8 | J7: A1 | K7: Jan | L7: 0.5 | M7: 1.2 | N7: 0.5 | O7: 0.6
A8: Feb | B8: 30 | C8: =AVERAGE(L8,L23) -> 0.55 | D8: 2.75 | E8: 10 | F8: =AVERAGE(N8,N23) -> 0.55 | G8: 1.4 | K8: Feb | L8: 0.7 | M8: 4.4 | N8: 0.7 | O8: 2.2
A9: Mar | B9: 30 | C9: =AVERAGE(L9,L24) -> 0.6 | D9: 1.9 | E9: 10 | F9: =AVERAGE(N9,N24) -> 0.6 | G9: 1.05 | K9: Mar | L9: 0.9 | M9: 2.3 | N9: 0.9 | O9: 1.7 | Q9: Whole Installation table A5:G18:
A10: Apr | B10: 30 | C10: =AVERAGE(L10,L25) -> 0.45 | D10: 0.95 | E10: 10 | F10: =AVERAGE(N10,N25) -> 0.45 | G10: 0.7 | K10: Apr | L10: 0.6 | M10: 1.3 | N10: 0.6 | O10: 0.9 | Q10: Mean: for 1/2 hourly and daily periods calculate mean of values across all operational combustion lines for the month
A11: May | B11: 30 | C11: =AVERAGE(L11,L26) -> 0.8 | D11: 19 | E11: 10 | F11: =AVERAGE(N11,N26) -> 0.8 | G11: 1.9 | K11: May | L11: 0.9 | M11: 17.6 | N11: 0.9 | O11: 1.3
A12: Jun | B12: 30 | C12: =AVERAGE(L12,L27) -> 0.4 | D12: 1.4 | E12: 10 | F12: =AVERAGE(N12,N27) -> 0.4 | G12: 0.8 | K12: Jun | L12: 0.4 | M12: 1.4 | N12: 0.4 | O12: 0.7
A13: Jul | B13: 30 | C13: =AVERAGE(L13,L28) -> 0.45 | D13: 2.2 | E13: 10 | F13: =AVERAGE(N13,N28) -> 0.45 | G13: 1.75 | K13: Jul | L13: 0.4 | M13: 0.7 | N13: 0.4 | O13: 0.5 | Q13: Maximum: for 1/2 hourly and daily periods use the highest value across all operational combustion lines for the month
A14: Aug | B14: 30 | C14: =AVERAGE(L14,L29) -> 0.3 | D14: 2.5 | E14: 10 | F14: =AVERAGE(N14,N29) -> 0.3 | G14: 0.8 | K14: Aug | L14: 0.4 | M14: 0.8 | N14: 0.4 | O14: 0.5
A15: Sep | B15: 30 | C15: =AVERAGE(L15,L30) -> 0.25 | D15: 0.45 | E15: 10 | F15: =AVERAGE(N15,N30) -> 0.25 | G15: 0.25 | K15: Sep | L15: 0.4 | M15: 0.6 | N15: 0.4 | O15: 0.4
A16: Oct | B16: 30 | C16: =AVERAGE(L16,L31) -> 0.25 | D16: 0.7 | E16: 10 | F16: =AVERAGE(N16,N31) -> 0.25 | G16: 0.4 | K16: Oct | L16: 0.4 | M16: 1 | N16: 0.4 | O16: 0.6
A17: Nov | B17: 30 | C17: =AVERAGE(L17,L32) -> 0.5 | D17: 5.95 | E17: 10 | F17: =AVERAGE(N17,N32) -> 0.5 | G17: 1.4 | K17: Nov | L17: 0.9 | M17: 11.6 | N17: 0.9 | O17: 2.6
A18: Dec | B18: 30 | C18: =AVERAGE(L18,L33) -> 0.55 | D18: 2.35 | E18: 10 | F18: =AVERAGE(N18,N33) -> 0.55 | G18: 1.35 | K18: Dec | L18: 0.8 | M18: 3.3 | N18: 0.8 | O18: 2
K19: Annual | L19: =AVERAGE(L7:L18) -> 0.6083333333 | M19: =MAX(M7:M18) -> 17.6 | N19: =AVERAGE(N7:N18) -> 0.6083333333 | O19: =MAX(O7:O18) -> 2.6
J21: =+A6 -> 2022 | K21: mg/Nm3 | L21: Monthly 1/2 hourly mean | M21: Monthly 1/2 hourly maximum | N21: Monthly daily mean | O21: Monthly daily maximum
J22: A2 | K22: Jan | L22: 0.4 | M22: 1.7 | N22: 0.4 | O22: 1
K23: Feb | L23: 0.4 | M23: 1.1 | N23: 0.4 | O23: 0.6
K24: Mar | L24: 0.3 | M24: 1.5 | N24: 0.3 | O24: 0.4
K25: Apr | L25: 0.3 | M25: 0.6 | N25: 0.3 | O25: 0.5
K26: May | L26: 0.7 | M26: 20.4 | N26: 0.7 | O26: 2.5
K27: Jun | L27: 0.4 | M27: 1.4 | N27: 0.4 | O27: 0.9
K28: Jul | L28: 0.5 | M28: 3.7 | N28: 0.5 | O28: 3
K29: Aug | L29: 0.2 | M29: 4.2 | N29: 0.2 | O29: 1.1
K30: Sep | L30: 0.1 | M30: 0.3 | N30: 0.1 | O30: 0.1
K31: Oct | L31: 0.1 | M31: 0.4 | N31: 0.1 | O31: 0.2
K32: Nov | L32: 0.1 | M32: 0.3 | N32: 0.1 | O32: 0.2
K33: Dec | L33: 0.3 | M33: 1.4 | N33: 0.3 | O33: 0.7
K34: Annual | L34: =AVERAGE(L22:L33) -> 0.3166666667 | M34: =MAX(M22:M33) -> 20.4 | N34: =AVERAGE(N22:N33) -> 0.3166666667 | O34: =MAX(O22:O33) -> 3
J36: =+A6 -> 2022 | K36: mg/Nm3 | L36: Monthly 1/2 hourly mean | M36: Monthly 1/2 hourly maximum | N36: Monthly daily mean | O36: Monthly daily maximum
J37: A3 | K37: Jan
K38: Feb
K39: Mar
K40: Apr
K41: May
K42: Jun
K43: Jul
K44: Aug
K45: Sep
K46: Oct
K47: Nov
A48: Comments : | K48: Dec
K49: Annual | L49: =AVERAGE(L37:L48) ->  | M49: =MAX(M37:M48) -> 0 | N49: =AVERAGE(N37:N48) ->  | O49: =MAX(O37:O48) -> 0
J51: =+A6 -> 2022 | K51: mg/Nm3 | L51: Monthly 1/2 hourly mean | M51: Monthly 1/2 hourly maximum | N51: Monthly daily mean | O51: Monthly daily maximum
J52: A4 | K52: Jan
K53: Feb
C54: 2023-02-24 | K54: Mar
K55: Apr
K56: May
K57: Jun
K58: Jul
K59: Aug
K60: Sep
K61: Oct
K62: Nov
K63: Dec
K64: Annual | L64: =AVERAGE(L52:L63) ->  | M64: =MAX(M52:M63) -> 0 | N64: =AVERAGE(N52:N63) ->  | O64: =MAX(O52:O63) -> 0
J66: =+A6 -> 2022 | K66: mg/Nm3 | L66: Monthly 1/2 hourly mean | M66: Monthly 1/2 hourly maximum | N66: Monthly daily mean | O66: Monthly daily maximum
J67: A5 | K67: Jan
K68: Feb
K69: Mar
K70: Apr
K71: May
K72: Jun
K73: Jul
K74: Aug
K75: Sep
K76: Oct
K77: Nov
K78: Dec
K79: Annual | L79: =AVERAGE(L67:L78) ->  | M79: =MAX(M67:M78) -> 0 | N79: =AVERAGE(N67:N78) ->  | O79: =MAX(O67:O78) -> 0

Sheet CO 0.5hourly
A1: =+'Cover Page'!$B$30 -> Annual Performance Report 2022 | E1: =+'Cover Page'!$B$34 -> Cornwall Energy Recovery Centre
A3: Monitoring of Carbon Monoxide (half hourly) | D3: Whole Installation | G3: See Notes in Cell Q3 | J3: =+A3 -> Monitoring of Carbon Monoxide (half hourly) | N3: Per Combustion Line | Q3: Notes:
Q4: User to add logic to complete Whole installation, Table A5:G18. From the data in Per Combustion Line, Table J6:O79, subject to No. of lines installed
A5: mg/Nm3 | B5: 1/2 Hourly Reference Periods | E5: Daily Reference Periods
A6: =+'Cover Page'!C40 -> 2022 | B6: 1/2 hourly CO ELV | C6: Monthly 1/2 hourly mean | D6: Highest 1/2 hourly maximum | E6: Daily CO ELV | F6: Monthly daily mean | G6: Highest daily maximum | J6: =+A6 -> 2022 | K6: mg/Nm3 | L6: Monthly 1/2 hourly mean | M6: Monthly 1/2 hourly maximum | N6: Monthly daily mean | O6: Monthly daily maximum
A7: Jan | B7: 100 | C7: =AVERAGE(L7,L22) -> 1.5 | D7: =AVERAGE(M7,M22) -> 42.9 | E7: 50 | F7: =AVERAGE(N7,N22) -> 1.5 | G7: =AVERAGE(O7,O22) -> 4.5 | J7: A1 | K7: Jan | L7: 0 | M7: 1.8 | N7: 0 | O7: 3
A8: Feb | B8: =+B7 -> 100 | C8: =AVERAGE(L8,L23) -> 1 | D8: 33 | E8: =+E7 -> 50 | F8: =AVERAGE(N8,N23) -> 1 | G8: =AVERAGE(O8,O23) -> 3 | K8: Feb | L8: 0 | M8: 59 | N8: 0 | O8: 3
A9: Mar | B9: =+B8 -> 100 | C9: =AVERAGE(L9,L24) ->  | E9: =+E8 -> 50 | K9: Mar | Q9: Whole Installation table A5:G18:
A10: Apr | B10: 100 | C10: =AVERAGE(L10,L25) ->  | E10: 50 | K10: Apr | Q10: Mean: for 1/2 hourly and daily periods calculate mean of values across all operational combustion lines for the month
A11: May | B11: 100 | C11: =AVERAGE(L11,L26) ->  | E11: 50 | K11: May
A12: Jun | B12: 100 | C12: =AVERAGE(L12,L27) ->  | E12: 50 | K12: Jun
A13: Jul | B13: 100 | C13: =AVERAGE(L13,L28) ->  | E13: 50 | K13: Jul | Q13: Maximum: for 1/2 hourly and daily periods use the highest value across all operational combustion lines for the month
A14: Aug | B14: 100 | C14: =AVERAGE(L14,L29) ->  | E14: 50 | K14: Aug
A15: Sep | B15: 100 | C15: =AVERAGE(L15,L30) ->  | E15: 50 | K15: Sep
A16: Oct | B16: 100 | C16: =AVERAGE(L16,L31) ->  | E16: 50 | K16: Oct
A17: Nov | B17: 100 | C17: =AVERAGE(L17,L32) ->  | E17: 50 | K17: Nov
A18: Dec | B18: 100 | C18: =AVERAGE(L18,L33) ->  | E18: 50 | K18: Dec
K19: Annual | L19: =AVERAGE(L7:L18) -> 0 | M19: =MAX(M7:M18) -> 59 | N19: =AVERAGE(N7:N18) -> 0 | O19: =MAX(O7:O18) -> 3
J21: =+A6 -> 2022 | K21: mg/Nm3 | L21: Monthly 1/2 hourly mean | M21: Monthly 1/2 hourly maximum | N21: Monthly daily mean | O21: Monthly daily maximum
J22: A2 | K22: Jan | L22: 3 | M22: 84 | N22: 3 | O22: 6
K23: Feb | L23: 2 | M23: 7 | N23: 2 | O23: 3
K24: Mar
K25: Apr
K26: May
K27: Jun
K28: Jul
K29: Aug
K30: Sep
K31: Oct
K32: Nov
K33: Dec
K34: Annual | L34: =AVERAGE(L22:L33) -> 2.5 | M34: =MAX(M22:M33) -> 84 | N34: =AVERAGE(N22:N33) -> 2.5 | O34: =MAX(O22:O33) -> 6
J36: =+A6 -> 2022 | K36: mg/Nm3 | L36: Monthly 1/2 hourly mean | M36: Monthly 1/2 hourly maximum | N36: Monthly daily mean | O36: Monthly daily maximum
J37: A3 | K37: Jan
K38: Feb
K39: Mar
K40: Apr
K41: May
K42: Jun
K43: Jul
K44: Aug
K45: Sep
K46: Oct
K47: Nov
A48: Comments : | K48: Dec
A49: A permit variation was issued during March 2022 in which the assessment of CO2 changed from half hourly averages to 10 minute averages. Data from March onwards is included on the next report tab. | K49: Annual | L49: =AVERAGE(L37:L48) ->  | M49: =MAX(M37:M48) -> 0 | N49: =AVERAGE(N37:N48) ->  | O49: =MAX(O37:O48) -> 0
J51: =+A6 -> 2022 | K51: mg/Nm3 | L51: Monthly 1/2 hourly mean | M51: Monthly 1/2 hourly maximum | N51: Monthly daily mean | O51: Monthly daily maximum
J52: A4 | K52: Jan
K53: Feb
C54: 2023-02-24 | K54: Mar
K55: Apr
K56: May
K57: Jun
K58: Jul
K59: Aug
K60: Sep
K61: Oct
K62: Nov
K63: Dec
K64: Annual | L64: =AVERAGE(L52:L63) ->  | M64: =MAX(M52:M63) -> 0 | N64: =AVERAGE(N52:N63) ->  | O64: =MAX(O52:O63) -> 0
J66: =+A6 -> 2022 | K66: mg/Nm3 | L66: Monthly 1/2 hourly mean | M66: Monthly 1/2 hourly maximum | N66: Monthly daily mean | O66: Monthly daily maximum
J67: A5 | K67: Jan
K68: Feb
K69: Mar
K70: Apr
K71: May
K72: Jun
K73: Jul
K74: Aug
K75: Sep
K76: Oct
K77: Nov
K78: Dec
K79: Annual | L79: =AVERAGE(L67:L78) ->  | M79: =MAX(M67:M78) -> 0 | N79: =AVERAGE(N67:N78) ->  | O79: =MAX(O67:O78) -> 0

Sheet CO 95% 10 min
A1: =+'Cover Page'!$B$30 -> Annual Performance Report 2022 | E1: =+'Cover Page'!$B$34 -> Cornwall Energy Recovery Centre
A3: Monitoring of Carbon Monoxide (10-minute avg) | E3: Whole Installation | H3: See Notes in Cell S3 | J3: =+A3 -> Monitoring of Carbon Monoxide (10-minute avg) | O3: Per Combustion Line | Q3: Notes: | S3: Notes:
S4: User to add logic to complete Whole installation, Table A5:H18. From the data in Per Combustion Line, Table K6:Q79, subject to No. of lines installed
A5: mg/Nm3 | B5: 10-minute Reference Periods | F5: Daily Reference Periods
A6: =+'Cover Page'!C40 -> 2022 | B6: 95%ile 10-min avg CO ELV | C6: 95%ile 10-min avg maximum | D6: Monthly CO 10-min avg mean | E6: 10-min avg maximum | F6: Daily CO ELV | G6: Monthly daily mean | H6: Highest daily maximum | K6: =+A6 -> 2022 | L6: mg/Nm3 | M6: 95%ile 10-min avg maximum | N6: Monthly CO 10-min avg mean | O6: 10-min avg maximum | P6: Monthly daily mean | Q6: Monthly daily maximum
A7: Jan | B7: 150 | C7: =AVERAGE(M7,M22) ->  | D7: =AVERAGE(N7,N22) ->  | F7: 50 | G7: =AVERAGE(P7,P22) ->  | H7: =AVERAGE(Q7,Q22) ->  | K7: A1 | L7: Jan
A8: Feb | B8: =+B7 -> 150 | C8: =AVERAGE(M8,M23) ->  | D8: =AVERAGE(N8,N23) ->  | E8: =AVERAGE(O8,O23) ->  | F8: =+F7 -> 50 | G8: =AVERAGE(P8,P23) ->  | L8: Feb
A9: Mar | B9: =+B8 -> 150 | C9: 6.5 | D9: 1 | E9: 100 | F9: =+F8 -> 50 | G9: =AVERAGE(P9,P24) -> 1 | H9: 3 | L9: Mar | M9: 7 | N9: 0 | O9: 140 | P9: 0 | Q9: 3 | S9: Whole Installation table A5:H18:
A10: Apr | B10: 150 | C10: 11.5 | D10: 1.5 | E10: 71 | F10: 50 | G10: =AVERAGE(P10,P25) -> 1.5 | H10: 2.5 | L10: Apr | M10: 11 | N10: 0 | O10: 107 | P10: 0 | Q10: 1 | S10: Mean: for 10-min and daily periods use average of all operational combustion lines.
A11: May | B11: 150 | C11: 5 | D11: 1 | E11: 73 | F11: 50 | G11: =AVERAGE(P11,P26) -> 1 | H11: 1.5 | L11: May | M11: 4 | N11: 0 | O11: 128 | P11: 0 | Q11: 0
A12: Jun | B12: 150 | C12: 3.5 | D12: 1 | E12: 160.5 | F12: 50 | G12: =AVERAGE(P12,P27) -> 1 | H12: 1.5 | L12: Jun | M12: 1 | N12: 0 | O12: 211 | P12: 0 | Q12: 0
A13: Jul | B13: 150 | C13: 15 | D13: 1.5 | E13: 210.5 | F13: 50 | G13: =AVERAGE(P13,P28) -> 1.5 | H13: 5.5 | L13: Jul | M13: 4 | N13: 0 | O13: 145 | P13: 0 | Q13: 1 | S13: Maximum: for 10-min and daily periods use the highest of all operational combustion lines in any month.
A14: Aug | B14: 150 | C14: 13 | D14: 1.5 | E14: 374.5 | F14: 50 | G14: =AVERAGE(P14,P29) -> 1.5 | H14: 3 | L14: Aug | M14: 4 | N14: 0 | O14: 123 | P14: 0 | Q14: 0
A15: Sep | B15: 150 | C15: 6 | D15: 1 | E15: 185.5 | F15: 50 | G15: =AVERAGE(P15,P30) -> 1 | H15: 4.5 | L15: Sep | M15: 7 | N15: 0 | O15: 122 | P15: 0 | Q15: 5
A16: Oct | B16: 150 | C16: 14 | D16: 2.5 | E16: 183.5 | F16: 50 | G16: =AVERAGE(P16,P31) -> 2.5 | H16: 6.5 | L16: Oct | M16: 8 | N16: 1 | O16: 107 | P16: 1 | Q16: 5
A17: Nov | B17: 150 | C17: 11 | D17: 2.5 | E17: 246.5 | F17: 50 | G17: =AVERAGE(P17,P32) -> 2.5 | H17: 5.5 | L17: Nov | M17: 9 | N17: 1 | O17: 316 | P17: 1 | Q17: 4
A18: Dec | B18: 150 | C18: 7.5 | D18: 3.5 | E18: 228.5 | F18: 50 | G18: =AVERAGE(P18,P33) -> 3.5 | H18: 5 | L18: Dec | M18: 7 | N18: 2 | O18: 165 | P18: 2 | Q18: 3
L19: Annual | M19: =AVERAGE(M7:M18) -> 6.2 | N19: =AVERAGE(N7:N18) -> 0.4 | O19: =MAX(O7:O18) -> 316 | P19: =AVERAGE(P7:P18) -> 0.4 | Q19: =MAX(Q7:Q18) -> 5
K21: =+A6 -> 2022 | L21: mg/Nm3 | M21: 95%ile 10-min avg maximum | N21: Monthly CO 10-min avg mean | O21: 10-min avg maximum | P21: Monthly daily mean | Q21: Monthly daily maximum
K22: A2 | L22: Jan
L23: Feb
L24: Mar | M24: 6 | N24: 2 | O24: 60 | P24: 2 | Q24: 3
L25: Apr | M25: 12 | N25: 3 | O25: 35 | P25: 3 | Q25: 4
L26: May | M26: 6 | N26: 2 | O26: 18 | P26: 2 | Q26: 3
L27: Jun | M27: 6 | N27: 2 | O27: 110 | P27: 2 | Q27: 3
L28: Jul | M28: 26 | N28: 3 | O28: 276 | P28: 3 | Q28: 10
L29: Aug | M29: 22 | N29: 3 | O29: 626 | P29: 3 | Q29: 6
L30: Sep | M30: 5 | N30: 2 | O30: 249 | P30: 2 | Q30: 4
L31: Oct | M31: 20 | N31: 4 | O31: 260 | P31: 4 | Q31: 8
L32: Nov | M32: 13 | N32: 4 | O32: 177 | P32: 4 | Q32: 7
L33: Dec | M33: 8 | N33: 5 | O33: 292 | P33: 5 | Q33: 7
L34: Annual | M34: =AVERAGE(M22:M33) -> 12.4 | N34: =AVERAGE(N22:N33) -> 3 | O34: =MAX(O22:O33) -> 626 | P34: =AVERAGE(P22:P33) -> 3 | Q34: =MAX(Q22:Q33) -> 10
K36: =+A6 -> 2022 | L36: mg/Nm3 | M36: 95%ile 10-min avg maximum | N36: Monthly CO 10-min avg mean | O36: 10-min avg maximum | P36: Monthly daily mean | Q36: Monthly daily maximum
K37: A3 | L37: Jan
L38: Feb
L39: Mar
L40: Apr
L41: May
L42: Jun
L43: Jul
L44: Aug
L45: Sep
L46: Oct
L47: Nov
A48: Comments : | L48: Dec
A49: Environment Agency explanatory note: The 10-minute average ELV is based on the “95th percentile”. In this case this means that 95% of the 10 minute averages in the relevant 24-hour period (i.e. 137) must be below 150 mg/Nm3, and 5% (i.e. 7) are allowed to be any value above 150 mg/Nm3. Whilst we expect operators to minimise CO emissions at all times, it is perfectly acceptable for the value of the maximum 10-minute average to be above 150 mg/Nm3, provided the 95th percentile ELV has been met for that period. | L49: Annual | M49: =AVERAGE(M37:M48) ->  | O49: =MAX(O37:O48) -> 0 | P49: =AVERAGE(P37:P48) ->  | Q49: =MAX(Q37:Q48) -> 0
K51: =+A6 -> 2022 | L51: mg/Nm3 | M51: 95%ile 10-min avg maximum | N51: Monthly CO 10-min avg mean | O51: 10-min avg maximum | P51: Monthly daily mean | Q51: Monthly daily maximum
K52: A4 | L52: Jan
L53: Feb
C54: 2023-02-24 | L54: Mar
L55: Apr
L56: May
L57: Jun
L58: Jul
L59: Aug
L60: Sep
L61: Oct
L62: Nov
L63: Dec
L64: Annual | M64: =AVERAGE(M52:M63) ->  | O64: =MAX(O52:O63) -> 0 | P64: =AVERAGE(P52:P63) ->  | Q64: =MAX(Q52:Q63) -> 0
K66: =+A6 -> 2022 | L66: mg/Nm3 | M66: 95%ile 10-min avg maximum | N66: Monthly CO 10-min avg mean | O66: 10-min avg maximum | P66: Monthly daily mean | Q66: Monthly daily maximum
K67: A5 | L67: Jan
L68: Feb
L69: Mar
L70: Apr
L71: May
L72: Jun
L73: Jul
L74: Aug
L75: Sep
L76: Oct
L77: Nov
L78: Dec
L79: Annual | M79: =AVERAGE(M67:M78) ->  | O79: =MAX(O67:O78) -> 0 | P79: =AVERAGE(P67:P78) ->  | Q79: =MAX(Q67:Q78) -> 0

Sheet NH3
A1: =+'Cover Page'!$B$30 -> Annual Performance Report 2022 | E1: =+'Cover Page'!$B$34 -> Cornwall Energy Recovery Centre
A3: Monitoring of Ammonia emissions | D3: Whole Installation | G3: See Notes in Cell Q3 | J3: =+A3 -> Monitoring of Ammonia emissions | N3: Per Combustion Line | Q3: Notes:
Q4: User to add logic to complete Whole installation, Table A5:G18. From the data in Per Combustion Line, Table J6:O79, subject to No. of lines installed
A5: mg/Nm3 | B5: 1/2 Hourly Reference Periods | E5: Daily Reference Periods
A6: =+'Cover Page'!C40 -> 2022 | B6: 1/2 hourly NH3 ELV | C6: Monthly 1/2 hourly mean | D6: Highest 1/2 hourly maximum | E6: Daily NH3 ELV | F6: Monthly daily mean | G6: Highest daily maximum | J6: =+A6 -> 2022 | K6: mg/Nm3 | L6: Monthly 1/2 hourly mean | M6: Monthly 1/2 hourly maximum | N6: Monthly daily mean | O6: Monthly daily maximum
A7: Jan | B7: 0 | C7: =AVERAGE(L7,L22) -> 0 | D7: =AVERAGE(M7,M22) -> 0.25 | E7: 10 | F7: =AVERAGE(N7,N22) -> 0 | G7: =AVERAGE(O7,O22) -> 0.05 | J7: A1 | K7: Jan | L7: 0 | M7: 0.1 | N7: 0 | O7: 0
A8: Feb | B8: =+B7 -> 0 | C8: =AVERAGE(L8,L23) -> 0 | D8: 0.05 | E8: =+E7 -> 10 | F8: =AVERAGE(N8,N23) -> 0 | G8: 0 | K8: Feb | L8: 0 | M8: 0.1 | N8: 0 | O8: 0
A9: Mar | B9: =+B8 -> 0 | C9: =AVERAGE(L9,L24) -> 0 | D9: 0.65 | E9: =+E8 -> 10 | F9: =AVERAGE(N9,N24) -> 0 | G9: 0 | K9: Mar | L9: 0 | M9: 0.2 | N9: 0 | O9: 0 | Q9: Whole Installation table A5:G18:
A10: Apr | B10: 0 | C10: =AVERAGE(L10,L25) -> 0 | D10: 0.15 | E10: 10 | F10: =AVERAGE(N10,N25) -> 0 | G10: 0.05 | K10: Apr | L10: 0 | M10: 0.2 | N10: 0 | O10: 0.1 | Q10: Mean: for 1/2 hourly and daily periods calculate mean of values across all operational combustion lines for the month
A11: May | B11: 0 | C11: =AVERAGE(L11,L26) -> 0 | D11: 0.7 | E11: 10 | F11: =AVERAGE(N11,N26) -> 0 | G11: 0.15 | K11: May | L11: 0 | M11: 0.4 | N11: 0 | O11: 0.1
A12: Jun | B12: 0 | C12: =AVERAGE(L12,L27) -> 0 | D12: 0.15 | E12: 10 | F12: =AVERAGE(N12,N27) -> 0 | G12: 0.05 | K12: Jun | L12: 0 | M12: 0.1 | N12: 0 | O12: 0.1
A13: Jul | B13: 0 | C13: =AVERAGE(L13,L28) -> 0.05 | D13: 0.2 | E13: 10 | F13: =AVERAGE(N13,N28) -> 0.05 | G13: 0.05 | K13: Jul | L13: 0.1 | M13: 0.1 | N13: 0.1 | O13: 0.1 | Q13: Maximum: for 1/2 hourly and daily periods use the highest value across all operational combustion lines for the month
A14: Aug | B14: 0 | C14: =AVERAGE(L14,L29) -> 0.05 | D14: 1.1 | E14: 10 | F14: =AVERAGE(N14,N29) -> 0.05 | G14: 0.1 | K14: Aug | L14: 0.1 | M14: 0.1 | N14: 0.1 | O14: 0.1
A15: Sep | B15: 0 | C15: =AVERAGE(L15,L30) -> 0.05 | D15: 0.15 | E15: 10 | F15: =AVERAGE(N15,N30) -> 0.05 | G15: 0.05 | K15: Sep | L15: 0.1 | M15: 0.2 | N15: 0.1 | O15: 0.1
A16: Oct | B16: 0 | C16: =AVERAGE(L16,L31) -> 0.05 | D16: 0.2 | E16: 10 | F16: =AVERAGE(N16,N31) -> 0.05 | G16: 0.05 | K16: Oct | L16: 0.1 | M16: 0.2 | N16: 0.1 | O16: 0.1
A17: Nov | B17: 0 | C17: =AVERAGE(L17,L32) -> 0.05 | D17: 0.15 | E17: 10 | F17: =AVERAGE(N17,N32) -> 0.05 | G17: 0.05 | K17: Nov | L17: 0.1 | M17: 0.2 | N17: 0.1 | O17: 0.1
A18: Dec | B18: 0 | C18: =AVERAGE(L18,L33) -> 0 | D18: 0.15 | E18: 10 | F18: =AVERAGE(N18,N33) -> 0 | G18: 0.05 | K18: Dec | L18: 0 | M18: 0.2 | N18: 0 | O18: 0.1
K19: Annual | L19: =AVERAGE(L7:L18) -> 0.04166666667 | M19: =MAX(M7:M18) -> 0.4 | N19: =AVERAGE(N7:N18) -> 0.04166666667 | O19: =MAX(O7:O18) -> 0.1
J21: =+A6 -> 2022 | K21: mg/Nm3 | L21: Monthly 1/2 hourly mean | M21: Monthly 1/2 hourly maximum | N21: Monthly daily mean | O21: Monthly daily maximum
J22: A2 | K22: Jan | L22: 0 | M22: 0.4 | N22: 0 | O22: 0.1
K23: Feb | L23: 0 | M23: 0 | N23: 0 | O23: 0
K24: Mar | L24: 0 | M24: 1.1 | N24: 0 | O24: 0
K25: Apr | L25: 0 | M25: 0.1 | N25: 0 | O25: 0
K26: May | L26: 0 | M26: 1 | N26: 0 | O26: 0.2
K27: Jun | L27: 0 | M27: 0.2 | N27: 0 | O27: 0
K28: Jul | L28: 0 | M28: 0.3 | N28: 0 | O28: 0
K29: Aug | L29: 0 | M29: 2.1 | N29: 0 | O29: 0.1
K30: Sep | L30: 0 | M30: 0.1 | N30: 0 | O30: 0
K31: Oct | L31: 0 | M31: 0.2 | N31: 0 | O31: 0
K32: Nov | L32: 0 | M32: 0.1 | N32: 0 | O32: 0
K33: Dec | L33: 0 | M33: 0.1 | N33: 0 | O33: 0
K34: Annual | L34: =AVERAGE(L22:L33) -> 0 | M34: =MAX(M22:M33) -> 2.1 | N34: =AVERAGE(N22:N33) -> 0 | O34: =MAX(O22:O33) -> 0.2
J36: =+A6 -> 2022 | K36: mg/Nm3 | L36: Monthly 1/2 hourly mean | M36: Monthly 1/2 hourly maximum | N36: Monthly daily mean | O36: Monthly daily maximum
J37: A3 | K37: Jan
K38: Feb
K39: Mar
K40: Apr
K41: May
K42: Jun
K43: Jul
K44: Aug
K45: Sep
K46: Oct
K47: Nov
A48: Comments : | K48: Dec
A49: An indicated ELV value of zero in the table above means that no ammonia limit is set in the permit. | K49: Annual | L49: =AVERAGE(L37:L48) ->  | M49: =MAX(M37:M48) -> 0 | N49: =AVERAGE(N37:N48) ->  | O49: =MAX(O37:O48) -> 0
J51: =+A6 -> 2022 | K51: mg/Nm3 | L51: Monthly 1/2 hourly mean | M51: Monthly 1/2 hourly maximum | N51: Monthly daily mean | O51: Monthly daily maximum
J52: A4 | K52: Jan
K53: Feb
C54: 2023-02-24 | K54: Mar
K55: Apr
K56: May
K57: Jun
K58: Jul
K59: Aug
K60: Sep
K61: Oct
K62: Nov
K63: Dec
K64: Annual | L64: =AVERAGE(L52:L63) ->  | M64: =MAX(M52:M63) -> 0 | N64: =AVERAGE(N52:N63) ->  | O64: =MAX(O52:O63) -> 0
J66: =+A6 -> 2022 | K66: mg/Nm3 | L66: Monthly 1/2 hourly mean | M66: Monthly 1/2 hourly maximum | N66: Monthly daily mean | O66: Monthly daily maximum
J67: A5 | K67: Jan
K68: Feb
K69: Mar
K70: Apr
K71: May
K72: Jun
K73: Jul
K74: Aug
K75: Sep
K76: Oct
K77: Nov
K78: Dec
K79: Annual | L79: =AVERAGE(L67:L78) ->  | M79: =MAX(M67:M78) -> 0 | N79: =AVERAGE(N67:N78) ->  | O79: =MAX(O67:O78) -> 0

Sheet HF
A1: =+'Cover Page'!$B$30 -> Annual Performance Report 2022 | E1: =+'Cover Page'!$B$34 -> Cornwall Energy Recovery Centre
A3: Monitoring of Hydrogen Fluoride emissions | D3: Whole Installation | G3: See Notes in Cell Q3 | J3: =+A3 -> Monitoring of Hydrogen Fluoride emissions | N3: Per Combustion Line | Q3: Notes:
Q4: User to add logic to complete Whole installation, Table A5:G18. From the data in Per Combustion Line, Table J6:O79, subject to No. of lines installed
A5: mg/Nm3 | B5: 1/2 Hourly Reference Periods | E5: Daily Reference Periods
A6: =+'Cover Page'!C40 -> 2022 | B6: 1/2 hourly HF ELV | C6: Monthly 1/2 hourly mean | D6: Highest 1/2 hourly maximum | E6: Daily HF ELV | F6: Monthly daily mean | G6: Highest daily maximum | J6: =+A6 -> 2022 | K6: mg/Nm3 | L6: Monthly 1/2 hourly mean | M6: Monthly 1/2 hourly maximum | N6: Monthly daily mean | O6: Monthly daily maximum
A7: Jan | B7: 4 | C7: =AVERAGE(L7,L22) -> 0 | D7: =AVERAGE(M7,M22) -> 0.25 | E7: 1 | F7: =AVERAGE(N7,N22) -> 0 | G7: =AVERAGE(O7,O22) -> 0.15 | J7: A1 | K7: Jan | L7: 0 | M7: 0 | N7: 0 | O7: 0
A8: Feb | B8: 4 | C8: =AVERAGE(L8,L23) -> 0.05 | D8: 0.35 | E8: =+E7 -> 1 | F8: =AVERAGE(N8,N23) -> 0.05 | G8: 0.3 | K8: Feb | L8: 0 | M8: 0 | N8: 0 | O8: 0
A9: Mar | B9: 4 | C9: =AVERAGE(L9,L24) -> 0.15 | D9: 0.75 | E9: =+E8 -> 1 | F9: =AVERAGE(N9,N24) -> 0.15 | G9: 0.25 | K9: Mar | L9: 0 | M9: 0.7 | N9: 0 | O9: 0 | Q9: Whole Installation table A5:G18:
A10: Apr | B10: 4 | C10: =AVERAGE(L10,L25) -> 0 | D10: 0.6 | E10: 1 | F10: =AVERAGE(N10,N25) -> 0 | G10: 0.1 | K10: Apr | L10: 0 | M10: 0.5 | N10: 0 | O10: 0.1 | Q10: Mean: for 1/2 hourly and daily periods calculate mean of values across all operational combustion lines for the month
A11: May | B11: 4 | C11: =AVERAGE(L11,L26) -> 0 | D11: 1.2 | E11: 1 | F11: =AVERAGE(N11,N26) -> 0 | G11: 0.4 | K11: May | L11: 0 | M11: 1.1 | N11: 0 | O11: 0
A12: Jun | B12: =+B11 -> 4 | C12: =AVERAGE(L12,L27) -> 0 | D12: 1 | E12: 1 | F12: =AVERAGE(N12,N27) -> 0 | G12: 0.15 | K12: Jun | L12: 0 | M12: 0.9 | N12: 0 | O12: 0.1
A13: Jul | B13: 4 | C13: =AVERAGE(L13,L28) -> 0 | D13: 1.15 | E13: 1 | F13: =AVERAGE(N13,N28) -> 0 | G13: 0.15 | K13: Jul | L13: 0 | M13: 1.1 | N13: 0 | O13: 0.2 | Q13: Maximum: for 1/2 hourly and daily periods use the highest value across all operational combustion lines for the month
A14: Aug | B14: 4 | C14: =AVERAGE(L14,L29) -> 0.05 | D14: 1.5 | E14: 1 | F14: =AVERAGE(N14,N29) -> 0.05 | G14: 0.25 | K14: Aug | L14: 0.1 | M14: 1.6 | N14: 0.1 | O14: 0.3
A15: Sep | B15: 4 | C15: =AVERAGE(L15,L30) -> 0 | D15: 0.55 | E15: 1 | F15: =AVERAGE(N15,N30) -> 0 | G15: 0.15 | K15: Sep | L15: 0 | M15: 0.7 | N15: 0 | O15: 0.2
A16: Oct | B16: 4 | C16: =AVERAGE(L16,L31) -> 0 | D16: 0.6 | E16: 1 | F16: =AVERAGE(N16,N31) -> 0 | G16: 0 | K16: Oct | L16: 0 | M16: 0.6 | N16: 0 | O16: 0
A17: Nov | B17: 4 | C17: =AVERAGE(L17,L32) -> 0 | D17: 0.5 | E17: 1 | F17: =AVERAGE(N17,N32) -> 0 | G17: 0.05 | K17: Nov | L17: 0 | M17: 0.5 | N17: 0 | O17: 0
A18: Dec | B18: 4 | C18: =AVERAGE(L18,L33) -> 0 | D18: 0.5 | E18: 1 | F18: =AVERAGE(N18,N33) -> 0 | G18: 0 | K18: Dec | L18: 0 | M18: 0.4 | N18: 0 | O18: 0
K19: Annual | L19: =AVERAGE(L7:L18) -> 0.008333333333 | M19: =MAX(M7:M18) -> 1.6 | N19: =AVERAGE(N7:N18) -> 0.008333333333 | O19: =MAX(O7:O18) -> 0.3
J21: =+A6 -> 2022 | K21: mg/Nm3 | L21: Monthly 1/2 hourly mean | M21: Monthly 1/2 hourly maximum | N21: Monthly daily mean | O21: Monthly daily maximum
J22: A2 | K22: Jan | L22: 0 | M22: 0.5 | N22: 0 | O22: 0.3
K23: Feb | L23: 0.1 | M23: 0.7 | N23: 0.1 | O23: 0.6
K24: Mar | L24: 0.3 | M24: 0.8 | N24: 0.3 | O24: 0.5
K25: Apr | L25: 0 | M25: 0.7 | N25: 0 | O25: 0.1
K26: May | L26: 0 | M26: 1.3 | N26: 0 | O26: 0.8
K27: Jun | L27: 0 | M27: 1.1 | N27: 0 | O27: 0.2
K28: Jul | L28: 0 | M28: 1.2 | N28: 0 | O28: 0.1
K29: Aug | L29: 0 | M29: 1.4 | N29: 0 | O29: 0.2
K30: Sep | L30: 0 | M30: 0.4 | N30: 0 | O30: 0.1
K31: Oct | L31: 0 | M31: 0.6 | N31: 0 | O31: 0
K32: Nov | L32: 0 | M32: 0.5 | N32: 0 | O32: 0.1
K33: Dec | L33: 0 | M33: 0.6 | N33: 0 | O33: 0
K34: Annual | L34: =AVERAGE(L22:L33) -> 0.03333333333 | M34: =MAX(M22:M33) -> 1.4 | N34: =AVERAGE(N22:N33) -> 0.03333333333 | O34: =MAX(O22:O33) -> 0.8
J36: =+A6 -> 2022 | K36: mg/Nm3 | L36: Monthly 1/2 hourly mean | M36: Monthly 1/2 hourly maximum | N36: Monthly daily mean | O36: Monthly daily maximum
J37: A3 | K37: Jan
K38: Feb
K39: Mar
K40: Apr
K41: May
K42: Jun
K43: Jul
K44: Aug
K45: Sep
K46: Oct
K47: Nov
A48: Comments : | K48: Dec
K49: Annual | L49: =AVERAGE(L37:L48) ->  | M49: =MAX(M37:M48) -> 0 | N49: =AVERAGE(N37:N48) ->  | O49: =MAX(O37:O48) -> 0
J51: =+A6 -> 2022 | K51: mg/Nm3 | L51: Monthly 1/2 hourly mean | M51: Monthly 1/2 hourly maximum | N51: Monthly daily mean | O51: Monthly daily maximum
J52: A4 | K52: Jan
K53: Feb
C54: 2023-02-24 | K54: Mar
K55: Apr
K56: May
K57: Jun
K58: Jul
K59: Aug
K60: Sep
K61: Oct
K62: Nov
K63: Dec
K64: Annual | L64: =AVERAGE(L52:L63) ->  | M64: =MAX(M52:M63) -> 0 | N64: =AVERAGE(N52:N63) ->  | O64: =MAX(O52:O63) -> 0
J66: =+A6 -> 2022 | K66: mg/Nm3 | L66: Monthly 1/2 hourly mean | M66: Monthly 1/2 hourly maximum | N66: Monthly daily mean | O66: Monthly daily maximum
J67: A5 | K67: Jan
K68: Feb
K69: Mar
K70: Apr
K71: May
K72: Jun
K73: Jul
K74: Aug
K75: Sep
K76: Oct
K77: Nov
K78: Dec
K79: Annual | L79: =AVERAGE(L67:L78) ->  | M79: =MAX(M67:M78) -> 0 | N79: =AVERAGE(N67:N78) ->  | O79: =MAX(O67:O78) -> 0
